Workbook

Sheet JAN16
A1: CLERK OF THE COURTS
A2: BREVARD COUNTY, FLORIDA
A3: Document Source Statistics January 2016
A4: Number of Documents Filed by Case Category
A6: Case | B6: Category | D6: Total # of Documents Filed | E6: Documents Filed InCourt | F6: Documents Filed Informix | G6: Documents e-Filed | H6: Total Docs Auto-Docketed | I6: % of TOTAL InCourt | J6: % of TOTAL Informix | K6: % of TOTAL e-Filed | L6: Total % of Documents Auto Docketed
A7: AP | B7: APPEALS | D7: 56 | E7: 0 | F7: 0 | G7: 38 | H7: =SUM(G7) -> 38 | I7: =E7/D7 -> 0 | J7: =F7/D7 -> 0 | K7: =G7/D7 -> 0.6785714286 | L7: =SUM(I7:K7) -> 0.6785714286
A8: CA | B8: CIRCUIT CIVIL | D8: 17523 | E8: 0 | F8: 0 | G8: 14254 | H8: 14254 | I8: =E8/D8 -> 0 | J8: =F8/D8 -> 0 | K8: =G8/D8 -> 0.8134451863 | L8: =SUM(I8:K8) -> 0.8134451863
A9: SC | B9: COUNTY CIVIL SMALL CLAIMS | D9: 4028 | E9: 0 | F9: 0 | G9: 3102 | H9: 3102 | I9: 0 | J9: 0 | K9: 0.7701092354 | L9: 0.7701092354
A10: DR | B10: CIRCUIT CIVIL FAMILY | D10: 12665 | E10: 0 | F10: 0 | G10: 6488 | H10: 6488 | I10: 0 | J10: 0 | K10: 0.5122779313 | L10: 0.5122779313
A11: CP | B11: CIRCUIT CIVIL PROBATE | D11: 3806 | E11: 0 | F11: 0 | G11: 3138 | H11: 3138 | I11: 0 | J11: 0 | K11: 0.8244876511 | L11: 0.8244876511
A12: GA | B12: CIRCUIT CIVIL GUARDIANSHIP | D12: 1510 | E12: 0 | F12: 0 | G12: 1458 | H12: 1458 | I12: 0 | J12: 0 | K12: 0.9655629139 | L12: 0.9655629139
A13: MH | B13: CIRCUIT CIVIL MENTAL HEALTH | D13: 453 | E13: 0 | F13: 0 | G13: 196 | H13: 196 | I13: 0 | J13: 0 | K13: 0.4326710817 | L13: 0.4326710817
A14: CC | B14: COUNTY CIVIL | D14: 4511 | E14: 0 | F14: 0 | G14: 2970 | H14: 2970 | I14: 0 | J14: 0 | K14: 0.6583906008 | L14: 0.6583906008
A15: DP | B15: CIRCUIT JUVENILE DEPENDENCY | D15: 2432 | E15: 0 | F15: 0 | G15: 1247 | H15: 1247 | I15: 0 | J15: 0 | K15: 0.5127467105 | L15: 0.5127467105
A16: TOTAL OF CIVIL DOCUMENTS | D16: =SUM(D7:D15) -> 46984 | E16: =SUM(E7:E15) -> 0 | F16: =SUM(F7:F15) -> 0 | G16: =SUM(G7:G15) -> 32891 | H16: 32891 | I16: =E16/D16 -> 0 | J16: 0 | K16: 0.7000468245 | L16: 0.7000468245
A18: CJ | B18: CIRCUIT JUVENILE DELINQUENCY | D18: 5257 | E18: 3865 | F18: 1 | G18: 890 | H18: =SUM(E18:G18) -> 4756 | I18: =E18/D18 -> 0.7352101959 | J18: =F18/D18 -> 0.0001902225604 | K18: =G18/D18 -> 0.1692980788 | L18: =H18/D18 -> 0.9046984972
A19: CF | B19: CIRCUIT CRIMINAL FELONY | D19: 29222 | E19: 10414 | F19: 293 | G19: 8195 | H19: 18902 | I19: 0.3563753337 | J19: =F19/D19 -> 0.01002669222 | K19: =G19/D19 -> 0.280439395 | L19: =H19/D19 -> 0.6468414208
A20: MM | B20: COUNTY CRIMINAL MISDEMEANOR | D20: 13410 | E20: 8062 | F20: 147 | G20: 2065 | H20: 10274 | I20: 0.6011931394 | J20: 0.01096196868 | K20: 0.15398956 | L20: 0.7661446682
A21: CO | B21: COUNTY ORDINANCE | D21: 59 | E21: 38 | F21: 0 | G21: 14 | H21: 52 | I21: 0.6440677966 | J21: 0 | K21: 0.2372881356 | L21: 0.8813559322
A22: MO | B22: COUNTY COURT MUNICIPAL ORDINANCE | D22: 234 | E22: 144 | F22: 28 | G22: 33 | H22: 205 | I22: 0.6153846154 | J22: 0.1196581197 | K22: 0.141025641 | L22: 0.8760683761
A23: IN | B23: COUNTY COURT INFRACTIONS | D23: 242 | E23: 11 | F23: 0 | G23: 2 | H23: 13 | I23: 0.04545454545 | J23: 0 | K23: 0.00826446281 | L23: 0.05371900826
A24: CT | B24: COUNTY CRIMINAL TRAFFIC | D24: 10235 | E24: 5626 | F24: 329 | G24: 1264 | H24: 7219 | I24: 0.5496824621 | J24: 0.03214460186 | K24: 0.1234978017 | L24: 0.7053248657
A25: TOTAL OF CRIMINAL DOCUMENTS | D25: =SUM(D18:D24) -> 58659 | E25: =SUM(E18:E24) -> 28160 | F25: =SUM(F18:F24) -> 798 | G25: =SUM(G18:G24) -> 12463 | H25: 41421 | I25: 0.4800627355 | J25: 0.01360405053 | K25: 0.2124652653 | L25: 0.7061320513
A27: TR | B27: COUNTY CIVIL TRAFFIC | D27: 6827 | E27: 823 | F27: 0 | G27: 210 | H27: =SUM(E27:G27) -> 1033 | I27: =E27/D27 -> 0.1205507544 | J27: =F27/D27 -> 0 | K27: =G27/D27 -> 0.03076021679 | L27: =H27/D27 -> 0.1513109711
A29: TOTAL ALL COURT DOCUMENTS | D29: =D16+D25+D27 -> 112470 | E29: =E16+E25+E27 -> 28983 | F29: =F16+F25+F27 -> 798 | G29: =G16+G25+G27 -> 45564 | H29: =SUM(E29:G29) -> 75345 | I29: =E29/D29 -> 0.2576953854 | J29: =F29/D29 -> 0.007095225393 | K29: =G29/D29 -> 0.4051213657 | L29: =H29/D29 -> 0.6699119765

Sheet FEB16
A1: CLERK OF THE COURTS
A2: BREVARD COUNTY, FLORIDA
A3: Document Source Statistics February 2016
A4: Number of Documents Filed by Case Category
A6: Case | B6: Category | D6: Total # of Documents Filed | E6: Documents Filed InCourt | F6: Documents Filed Informix | G6: Documents e-Filed | H6: Total Docs Auto-Docketed | I6: % of TOTAL InCourt | J6: % of TOTAL Informix | K6: % of TOTAL e-Filed | L6: Total % of Documents Auto Docketed
A7: AP | B7: APPEALS | D7: 75 | E7: 0 | F7: 0 | G7: 57 | H7: =E7+F7+G7 -> 57 | I7: =E7/D7 -> 0 | J7: =F7/D7 -> 0 | K7: =G7/D7 -> 0.76 | L7: =SUM(I7:K7) -> 0.76
A8: CA | B8: CIRCUIT CIVIL | D8: 19260 | E8: 0 | F8: 0 | G8: 14863 | H8: =E8+F8+G8 -> 14863 | I8: =E8/D8 -> 0 | J8: =F8/D8 -> 0 | K8: =G8/D8 -> 0.7717030114 | L8: =SUM(I8:K8) -> 0.7717030114
A9: SC | B9: COUNTY CIVIL SMALL CLAIMS | D9: 3993 | E9: 0 | F9: 0 | G9: 3091 | H9: 3091 | I9: 0 | J9: 0 | K9: 0.7741046832 | L9: 0.7741046832
A10: DR | B10: CIRCUIT CIVIL FAMILY | D10: 13902 | E10: 0 | F10: 0 | G10: 7283 | H10: 7283 | I10: 0 | J10: 0 | K10: 0.5238814559 | L10: 0.5238814559
A11: CP | B11: CIRCUIT CIVIL PROBATE | D11: 4225 | E11: 0 | F11: 0 | G11: 3297 | H11: 3297 | I11: 0 | J11: 0 | K11: 0.7803550296 | L11: 0.7803550296
A12: GA | B12: CIRCUIT CIVIL GUARDIANSHIP | D12: 1725 | E12: 0 | F12: 0 | G12: 1620 | H12: 1620 | I12: 0 | J12: 0 | K12: 0.9391304348 | L12: 0.9391304348
A13: MH | B13: CIRCUIT CIVIL MENTAL HEALTH | D13: 682 | E13: 0 | F13: 0 | G13: 307 | H13: 307 | I13: 0 | J13: 0 | K13: 0.4501466276 | L13: 0.4501466276
A14: CC | B14: COUNTY CIVIL | D14: 4890 | E14: 0 | F14: 1 | G14: 3253 | H14: 3254 | I14: 0 | J14: 0.0002044989775 | K14: 0.6652351738 | L14: 0.6654396728
A15: DP | B15: CIRCUIT JUVENILE DEPENDENCY | D15: 2887 | E15: 0 | F15: 0 | G15: 1563 | H15: 1563 | I15: 0 | J15: 0 | K15: 0.5413924489 | L15: 0.5413924489
A16: TOTAL OF CIVIL DOCUMENTS | D16: =SUM(D7:D15) -> 51639 | E16: =SUM(E7:E15) -> 0 | F16: =SUM(F7:F15) -> 1 | G16: =SUM(G7:G15) -> 35334 | H16: =SUM(G16) -> 35334 | I16: =E16/D16 -> 0 | J16: 1.936520847e-05 | K16: 0.684250276 | L16: 0.6842696412
A18: CJ | B18: CIRCUIT JUVENILE DELINQUENCY | D18: 6238 | E18: 4549 | F18: 0 | G18: 1137 | H18: =SUM(E18:G18) -> 5686 | I18: =E18/D18 -> 0.7292401411 | J18: =F18/D18 -> 0 | K18: =G18/D18 -> 0.1822699583 | L18: =H18/D18 -> 0.9115100994
A19: CF | B19: CIRCUIT CRIMINAL FELONY | D19: 26011 | E19: 9357 | F19: 309 | G19: 6215 | H19: =SUM(E19:G19) -> 15881 | I19: 0.3597324209 | J19: =F19/D19 -> 0.0118795894 | K19: =G19/D19 -> 0.2389373727 | L19: =H19/D19 -> 0.610549383
A20: MM | B20: COUNTY CRIMINAL MISDEMEANOR | D20: 12986 | E20: 7416 | F20: 152 | G20: 2386 | H20: 9954 | I20: 0.571076544 | J20: 0.01170491298 | K20: 0.1837363314 | L20: 0.7665177884
A21: CO | B21: COUNTY ORDINANCE | D21: 82 | E21: 60 | F21: 2 | G21: 6 | H21: 68 | I21: 0.7317073171 | J21: 0.0243902439 | K21: 0.07317073171 | L21: 0.8292682927
A22: MO | B22: COUNTY COURT MUNICIPAL ORDINANCE | D22: 291 | E22: 194 | F22: 5 | G22: 44 | H22: 243 | I22: 0.6666666667 | J22: 0.01718213058 | K22: 0.1512027491 | L22: 0.8350515464
A23: IN | B23: COUNTY COURT INFRACTIONS | D23: 228 | E23: 14 | F23: 0 | G23: 9 | H23: 23 | I23: 0.06140350877 | J23: 0 | K23: 0.03947368421 | L23: 0.100877193
A24: CT | B24: COUNTY CRIMINAL TRAFFIC | D24: 10467 | E24: 5932 | F24: 202 | G24: 1525 | H24: 7659 | I24: 0.5667335435 | J24: 0.01929874845 | K24: 0.1456959969 | L24: 0.7317282889
A25: TOTAL OF CRIMINAL DOCUMENTS | D25: =SUM(D18:D24) -> 56303 | E25: =SUM(E18:E24) -> 27522 | F25: =SUM(F18:F24) -> 670 | G25: =SUM(G18:G24) -> 11322 | H25: =SUM(E25:G25) -> 39514 | I25: 0.4888194235 | J25: 0.01189989876 | K25: 0.201090528 | L25: 0.7018098503
A27: TR | B27: COUNTY CIVIL TRAFFIC | D27: 7593 | E27: 770 | F27: 1 | G27: 258 | H27: 0 | I27: =E27/D27 -> 0.1014091927 | J27: =F27/D27 -> 0.0001317002502 | K27: =G27/D27 -> 0.03397866456 | L27: =H27/D27 -> 0
A29: TOTAL ALL COURT DOCUMENTS | D29: =+D16+D25+D27 -> 115535 | E29: =E16+E25+E27 -> 28292 | F29: =F16+F25+F27 -> 672 | G29: =G16+G25+G27 -> 46914 | H29: =SUM(E29:G29) -> 75878 | I29: =E29/D29 -> 0.2448781754 | J29: =F29/D29 -> 0.005816419267 | K29: =G29/D29 -> 0.4060587701 | L29: =H29/D29 -> 0.6567533648

Sheet MAR16
A1: CLERK OF THE COURTS
A2: BREVARD COUNTY, FLORIDA
A3: Document Source Statistics March 2016
A4: Number of Documents Filed by Case Category
A6: Case | B6: Category | D6: Total # of Documents Filed | E6: Documents Filed InCourt | F6: Documents Filed Informix | G6: Documents e-Filed | H6: Total Docs Auto-Docketed | I6: % of TOTAL InCourt | J6: % of TOTAL Informix | K6: % of TOTAL e-Filed | L6: Total % of Documents Auto Docketed
A7: AP | B7: APPEALS | D7: 56 | E7: 0 | F7: 0 | G7: 41 | H7: =E7+F7+G7 -> 41 | I7: =E7/D7 -> 0 | J7: =F7/D7 -> 0 | K7: =G7/D7 -> 0.7321428571 | L7: =SUM(I7:K7) -> 0.7321428571
A8: CA | B8: CIRCUIT CIVIL | D8: 19647 | E8: 0 | F8: 0 | G8: 15950 | H8: =E8+F8+G8 -> 15950 | I8: =E8/D8 -> 0 | J8: =F8/D8 -> 0 | K8: =G8/D8 -> 0.8118287779 | L8: =SUM(I8:K8) -> 0.8118287779
A9: SC | B9: COUNTY CIVIL SMALL CLAIMS | D9: 4646 | E9: 0 | F9: 0 | G9: 3441 | H9: 3441 | I9: 0 | J9: 0 | K9: 0.7406371072 | L9: 0.7406371072
A10: DR | B10: CIRCUIT CIVIL FAMILY | D10: 14663 | E10: 0 | F10: 0 | G10: 7618 | H10: 7618 | I10: 0 | J10: 0 | K10: 0.5195389757 | L10: 0.5195389757
A11: CP | B11: CIRCUIT CIVIL PROBATE | D11: 4545 | E11: 0 | F11: 0 | G11: 3709 | H11: 3709 | I11: 0 | J11: 0 | K11: 0.8160616062 | L11: 0.8160616062
A12: GA | B12: CIRCUIT CIVIL GUARDIANSHIP | D12: 2123 | E12: 0 | F12: 0 | G12: 2025 | H12: 2025 | I12: 0 | J12: 0 | K12: 0.9538389072 | L12: 0.9538389072
A13: MH | B13: CIRCUIT CIVIL MENTAL HEALTH | D13: 706 | E13: 0 | F13: 0 | G13: 327 | H13: 327 | I13: 0 | J13: 0 | K13: 0.4631728045 | L13: 0.4631728045
A14: CC | B14: COUNTY CIVIL | D14: 4878 | E14: 0 | F14: 0 | G14: 3248 | H14: 3248 | I14: 0 | J14: 0 | K14: 0.6658466585 | L14: 0.6658466585
A15: DP | B15: CIRCUIT JUVENILE DEPENDENCY | D15: 2615 | E15: 0 | F15: 0 | G15: 1647 | H15: 1647 | I15: 0 | J15: 0 | K15: 0.6298279159 | L15: 0.6298279159
A16: TOTAL OF CIVIL DOCUMENTS | D16: =SUM(D7:D15) -> 53879 | E16: =SUM(E7:E15) -> 0 | F16: =SUM(F7:F15) -> 0 | G16: =SUM(G7:G15) -> 38006 | H16: =SUM(G16) -> 38006 | I16: =E16/D16 -> 0 | J16: 0 | K16: 0.7053954231 | L16: 0.7053954231
A18: CJ | B18: CIRCUIT JUVENILE DELINQUENCY | D18: 6399 | E18: 4145 | F18: 46 | G18: 1216 | H18: =SUM(E18:G18) -> 5407 | I18: =E18/D18 -> 0.6477574621 | J18: =F18/D18 -> 0.007188623222 | K18: =G18/D18 -> 0.1900296921 | L18: =H18/D18 -> 0.8449757775
A19: CF | B19: CIRCUIT CRIMINAL FELONY | D19: 26965 | E19: 9183 | F19: 329 | G19: 6495 | H19: =SUM(E19:G19) -> 16007 | I19: 0.3405525681 | J19: =F19/D19 -> 0.0122010013 | K19: =G19/D19 -> 0.2408677916 | L19: =H19/D19 -> 0.593621361
A20: MM | B20: COUNTY CRIMINAL MISDEMEANOR | D20: 14711 | E20: 8753 | F20: 188 | G20: 2471 | H20: 11412 | I20: 0.5949969411 | J20: 0.01277955272 | K20: 0.1679695466 | L20: 0.7757460404
A21: CO | B21: COUNTY ORDINANCE | D21: 65 | E21: 44 | F21: 0 | G21: 8 | H21: 52 | I21: 0.6769230769 | J21: 0 | K21: 0.1230769231 | L21: 0.8
A22: MO | B22: COUNTY COURT MUNICIPAL ORDINANCE | D22: 199 | E22: 102 | F22: 11 | G22: 28 | H22: 141 | I22: 0.5125628141 | J22: 0.05527638191 | K22: 0.1407035176 | L22: 0.7085427136
A23: IN | B23: COUNTY COURT INFRACTIONS | D23: 378 | E23: 9 | F23: 1 | G23: 0 | H23: 10 | I23: 0.02380952381 | J23: 0.002645502646 | K23: 0 | L23: 0.02645502646
A24: CT | B24: COUNTY CRIMINAL TRAFFIC | D24: 12459 | E24: 7427 | F24: 285 | G24: 1505 | H24: 9217 | I24: 0.596115258 | J24: 0.0228750301 | K24: 0.1207962116 | L24: 0.7397864997
A25: TOTAL OF CRIMINAL DOCUMENTS | D25: =SUM(D18:D24) -> 61176 | E25: =SUM(E18:E24) -> 29663 | F25: =SUM(F18:F24) -> 860 | G25: =SUM(G18:G24) -> 11723 | H25: =SUM(E25:G25) -> 42246 | I25: 0.4848796914 | J25: 0.01405780044 | K25: 0.1916274356 | L25: 0.6905649274
A27: TR | B27: COUNTY CIVIL TRAFFIC | D27: 8224 | E27: 787 | F27: 0 | G27: 257 | H27: 0 | I27: =E27/D27 -> 0.09569552529 | J27: =F27/D27 -> 0 | K27: =G27/D27 -> 0.03125 | L27: =H27/D27 -> 0
A29: TOTAL ALL COURT DOCUMENTS | D29: =D16+D25+D27 -> 123279 | E29: =E16+E25+E27 -> 30450 | F29: =F16+F25+F27 -> 860 | G29: =G16+G25+G27 -> 49986 | H29: =SUM(E29:G29) -> 81296 | I29: =E29/D29 -> 0.2470007057 | J29: =F29/D29 -> 0.006976046204 | K29: =G29/D29 -> 0.4054705181 | L29: =H29/D29 -> 0.65944727

Sheet APR16
A1: CLERK OF THE COURTS
A2: BREVARD COUNTY, FLORIDA
A3: Document Source Statistics April 2016
A4: Number of Documents Filed by Case Category
A6: Case | B6: Category | D6: Total # of Documents Filed | E6: Documents Filed InCourt | F6: Documents Filed Informix | G6: Documents e-Filed | H6: Total Docs Auto-Docketed | I6: % of TOTAL InCourt | J6: % of TOTAL Informix | K6: % of TOTAL e-Filed | L6: Total % of Documents Auto Docketed
A7: AP | B7: APPEALS | D7: 49 | E7: 0 | F7: 0 | G7: 40 | H7: =E7+F7+G7 -> 40 | I7: =E7/D7 -> 0 | J7: =F7/D7 -> 0 | K7: =G7/D7 -> 0.8163265306 | L7: =SUM(I7:K7) -> 0.8163265306
A8: CA | B8: CIRCUIT CIVIL | D8: 19171 | E8: 0 | F8: 0 | G8: 14909 | H8: =E8+F8+G8 -> 14909 | I8: =E8/D8 -> 0 | J8: =F8/D8 -> 0 | K8: =G8/D8 -> 0.7776850451 | L8: =SUM(I8:K8) -> 0.7776850451
A9: SC | B9: COUNTY CIVIL SMALL CLAIMS | D9: 3736 | E9: 0 | F9: 0 | G9: 2985 | H9: 2985 | I9: 0 | J9: 0 | K9: 0.7989828694 | L9: 0.7989828694
A10: DR | B10: CIRCUIT CIVIL FAMILY | D10: 14876 | E10: 0 | F10: 0 | G10: 7797 | H10: 7797 | I10: 0 | J10: 0 | K10: 0.5241328314 | L10: 0.5241328314
A11: CP | B11: CIRCUIT CIVIL PROBATE | D11: 4155 | E11: 0 | F11: 0 | G11: 3407 | H11: 3407 | I11: 0 | J11: 0 | K11: 0.8199759326 | L11: 0.8199759326
A12: GA | B12: CIRCUIT CIVIL GUARDIANSHIP | D12: 1827 | E12: 0 | F12: 0 | G12: 1712 | H12: 1712 | I12: 0 | J12: 0 | K12: 0.9370552819 | L12: 0.9370552819
A13: MH | B13: CIRCUIT CIVIL MENTAL HEALTH | D13: 737 | E13: 0 | F13: 0 | G13: 300 | H13: 300 | I13: 0 | J13: 0 | K13: 0.4070556309 | L13: 0.4070556309
A14: CC | B14: COUNTY CIVIL | D14: 4433 | E14: 0 | F14: 0 | G14: 3062 | H14: 3062 | I14: 0 | J14: 0 | K14: 0.6907286262 | L14: 0.6907286262
A15: DP | B15: CIRCUIT JUVENILE DEPENDENCY | D15: 2743 | E15: 0 | F15: 0 | G15: 1761 | H15: 1761 | I15: 0 | J15: 0 | K15: 0.6419978126 | L15: 0.6419978126
A16: TOTAL OF CIVIL DOCUMENTS | D16: =SUM(D7:D15) -> 51727 | E16: =SUM(E7:E15) -> 0 | F16: 0 | G16: =SUM(G7:G15) -> 35973 | H16: =SUM(H7:H15) -> 35973 | I16: =E16/D16 -> 0 | J16: 0 | K16: 0.695439519 | L16: 0.695439519
A18: CJ | B18: CIRCUIT JUVENILE DELINQUENCY | D18: 6529 | E18: 4329 | F18: 0 | G18: 1029 | H18: =SUM(E18:G18) -> 5358 | I18: =E18/D18 -> 0.6630418134 | J18: =F18/D18 -> 0 | K18: =G18/D18 -> 0.1576045336 | L18: =H18/D18 -> 0.8206463471
A19: CF | B19: CIRCUIT CRIMINAL FELONY | D19: 26508 | E19: 10846 | F19: 357 | G19: 5978 | H19: =SUM(E19:G19) -> 17181 | I19: 0.409159499 | J19: =F19/D19 -> 0.01346763241 | K19: =G19/D19 -> 0.2255168251 | L19: =H19/D19 -> 0.6481439565
A20: MM | B20: COUNTY CRIMINAL MISDEMEANOR | D20: 13769 | E20: 8172 | F20: 170 | G20: 2431 | H20: 10773 | I20: 0.5935071538 | J20: 0.01234657564 | K20: 0.1765560317 | L20: 0.7824097611
A21: CO | B21: COUNTY ORDINANCE | D21: 20 | E21: 10 | F21: 12 | G21: 9 | H21: 31 | I21: 0.5 | J21: 0.6 | K21: 0.45 | L21: 1.55
A22: MO | B22: COUNTY COURT MUNICIPAL ORDINANCE | D22: 266 | E22: 178 | F22: 0 | G22: 25 | H22: 203 | I22: 0.6691729323 | J22: 0 | K22: 0.09398496241 | L22: 0.7631578947
A23: IN | B23: COUNTY COURT INFRACTIONS | D23: 313 | E23: 15 | F23: 1 | G23: 3 | H23: 19 | I23: 0.04792332268 | J23: 0.003194888179 | K23: 0.009584664537 | L23: 0.0607028754
A24: CT | B24: COUNTY CRIMINAL TRAFFIC | D24: 10929 | E24: 6126 | F24: 517 | G24: 1385 | H24: 8028 | I24: 0.5605270382 | J24: 0.04730533443 | K24: 0.1267270565 | L24: 0.734559429
A25: TOTAL OF CRIMINAL DOCUMENTS | D25: =SUM(D18:D24) -> 58334 | E25: =SUM(E18:E24) -> 29676 | F25: =SUM(F18:F24) -> 1057 | G25: =SUM(G18:G24) -> 10860 | H25: =SUM(E25:G25) -> 41593 | I25: 0.5087256146 | J25: 0.01811979292 | K25: 0.1861693009 | L25: 0.7130147084
A27: TR | B27: COUNTY CIVIL TRAFFIC | D27: 7234 | E27: 855 | F27: 121 | G27: 223 | H27: 0 | I27: =E27/D27 -> 0.1181918717 | J27: =F27/D27 -> 0.01672656898 | K27: =G27/D27 -> 0.03082665192 | L27: =H27/D27 -> 0
A29: TOTAL ALL COURT DOCUMENTS | D29: =D16+D25+D27 -> 117295 | E29: =E16+E25+E27 -> 30531 | F29: =F16+F25+F27 -> 1178 | G29: =G16+G25+G27 -> 47056 | H29: =SUM(E29:G29) -> 78765 | I29: =E29/D29 -> 0.2602924251 | J29: =F29/D29 -> 0.01004305384 | K29: =G29/D29 -> 0.4011765207 | L29: =H29/D29 -> 0.6715119997

Sheet MAY16
A1: CLERK OF THE COURTS
A2: BREVARD COUNTY, FLORIDA
A3: Document Source Statistics May 2016
A4: Number of Documents Filed by Case Category
A6: Case | B6: Category | D6: Total # of Documents Filed | E6: Documents Filed InCourt | F6: Documents Filed Informix | G6: Documents e-Filed | H6: Total Docs Auto-Docketed | I6: % of TOTAL InCourt | J6: % of TOTAL Informix | K6: % of TOTAL e-Filed | L6: Total % of Documents Auto Docketed
A7: AP | B7: APPEALS | D7: 46 | E7: 0 | F7: 0 | G7: 31 | H7: =E7+F7+G7 -> 31 | I7: =E7/D7 -> 0 | J7: =F7/D7 -> 0 | K7: =G7/D7 -> 0.6739130435 | L7: =SUM(I7:K7) -> 0.6739130435
A8: CA | B8: CIRCUIT CIVIL | D8: 18006 | E8: 0 | F8: 0 | G8: 14524 | H8: =E8+F8+G8 -> 14524 | I8: =E8/D8 -> 0 | J8: =F8/D8 -> 0 | K8: =G8/D8 -> 0.8066200156 | L8: =SUM(I8:K8) -> 0.8066200156
A9: SC | B9: COUNTY CIVIL SMALL CLAIMS | D9: 3637 | E9: 0 | F9: 0 | G9: 2885 | H9: 2885 | I9: 0 | J9: 0 | K9: 0.7932361837 | L9: 0.7932361837
A10: DR | B10: CIRCUIT CIVIL FAMILY | D10: 14878 | E10: 0 | F10: 0 | G10: 7388 | H10: 7388 | I10: 0 | J10: 0 | K10: 0.4965721199 | L10: 0.4965721199
A11: CP | B11: CIRCUIT CIVIL PROBATE | D11: 4460 | E11: 0 | F11: 0 | G11: 3727 | H11: 3727 | I11: 0 | J11: 0 | K11: 0.8356502242 | L11: 0.8356502242
A12: GA | B12: CIRCUIT CIVIL GUARDIANSHIP | D12: 1882 | E12: 0 | F12: 0 | G12: 1735 | H12: 1735 | I12: 0 | J12: 0 | K12: 0.9218916047 | L12: 0.9218916047
A13: MH | B13: CIRCUIT CIVIL MENTAL HEALTH | D13: 720 | E13: 0 | F13: 0 | G13: 283 | H13: 283 | I13: 0 | J13: 0 | K13: 0.3930555556 | L13: 0.3930555556
A14: CC | B14: COUNTY CIVIL | D14: 4455 | E14: 0 | F14: 1 | G14: 3122 | H14: 3123 | I14: 0 | J14: 0.0002244668911 | K14: 0.7007856341 | L14: 0.701010101
A15: DP | B15: CIRCUIT JUVENILE DEPENDENCY | D15: 2434 | E15: 0 | F15: 3 | G15: 1522 | H15: 1525 | I15: 0 | J15: 0.00123253903 | K15: 0.6253081348 | L15: 0.6265406738
A16: TOTAL OF CIVIL DOCUMENTS | D16: =SUM(D7:D15) -> 50518 | E16: =SUM(E7:E15) -> 0 | F16: =SUM(F7:F15) -> 4 | G16: =SUM(G7:G15) -> 35217 | H16: =SUM(H7:H15) -> 35221 | I16: =E16/D16 -> 0 | J16: 7.917969833e-05 | K16: 0.697117859 | L16: 0.6971970387
A18: CJ | B18: CIRCUIT JUVENILE DELINQUENCY | D18: 6178 | E18: 4789 | F18: 0 | G18: 874 | H18: =SUM(E18:G18) -> 5663 | I18: =E18/D18 -> 0.7751699579 | J18: =F18/D18 -> 0 | K18: =G18/D18 -> 0.1414697313 | L18: =H18/D18 -> 0.9166396892
A19: CF | B19: CIRCUIT CRIMINAL FELONY | D19: 25120 | E19: 9666 | F19: 365 | G19: 5939 | H19: =SUM(E19:G19) -> 15970 | I19: 0.3847929936 | J19: =F19/D19 -> 0.01453025478 | K19: =G19/D19 -> 0.2364251592 | L19: =H19/D19 -> 0.6357484076
A20: MM | B20: COUNTY CRIMINAL MISDEMEANOR | D20: 13380 | E20: 7106 | F20: 140 | G20: 2205 | H20: 9451 | I20: 0.5310911809 | J20: 0.01046337818 | K20: 0.1647982063 | L20: 0.7063527653
A21: CO | B21: COUNTY ORDINANCE | D21: 70 | E21: 46 | F21: 4 | G21: 12 | H21: 62 | I21: 0.6571428571 | J21: 0.05714285714 | K21: 0.1714285714 | L21: 0.8857142857
A22: MO | B22: COUNTY COURT MUNICIPAL ORDINANCE | D22: 232 | E22: 123 | F22: 10 | G22: 19 | H22: 152 | I22: 0.5301724138 | J22: 0.04310344828 | K22: 0.08189655172 | L22: 0.6551724138
A23: IN | B23: COUNTY COURT INFRACTIONS | D23: 405 | E23: 15 | F23: 0 | G23: 1 | H23: 16 | I23: 0.03703703704 | J23: 0 | K23: 0.002469135802 | L23: 0.03950617284
A24: CT | B24: COUNTY CRIMINAL TRAFFIC | D24: 10374 | E24: 5538 | F24: 200 | G24: 1327 | H24: 7065 | I24: 0.5338345865 | J24: 0.01927896665 | K24: 0.1279159437 | L24: 0.6810294968
A25: TOTAL OF CRIMINAL DOCUMENTS | D25: =SUM(D18:D24) -> 55759 | E25: =SUM(E18:E24) -> 27283 | F25: =SUM(F18:F24) -> 719 | G25: =SUM(G18:G24) -> 10377 | H25: =SUM(E25:G25) -> 38379 | I25: 0.4893021754 | J25: 0.01289477932 | K25: 0.1861044854 | L25: 0.6883014401
A27: TR | B27: COUNTY CIVIL TRAFFIC | D27: 6954 | E27: 618 | F27: 162 | G27: 266 | H27: 0 | I27: =E27/D27 -> 0.08886971527 | J27: =F27/D27 -> 0.02329594478 | K27: =G27/D27 -> 0.03825136612 | L27: =H27/D27 -> 0
A29: TOTAL ALL COURT DOCUMENTS | D29: =D16+D25+D27 -> 113231 | E29: =E16+E25+E27 -> 27901 | F29: =F16+F25+F27 -> 885 | G29: =G16+G25+G27 -> 45860 | H29: =SUM(E29:G29) -> 74646 | I29: =E29/D29 -> 0.2464077859 | J29: =F29/D29 -> 0.00781588081 | K29: =G29/D29 -> 0.4050127615 | L29: =H29/D29 -> 0.6592364282

Sheet JUN16
A1: CLERK OF THE COURTS
A2: BREVARD COUNTY, FLORIDA
A3: Document Source Statistics June 2016
A4: Number of Documents Filed by Case Category
A6: Case | B6: Category | D6: Total # of Documents Filed | E6: Documents Filed InCourt | F6: Documents Filed Informix | G6: Documents e-Filed | H6: Total Docs Auto-Docketed | I6: % of TOTAL InCourt | J6: % of TOTAL Informix | K6: % of TOTAL e-Filed | L6: Total % of Documents Auto Docketed
A7: AP | B7: APPEALS | D7: 51 | E7: 0 | F7: 0 | G7: 36 | H7: =E7+F7+G7 -> 36 | I7: =E7/D7 -> 0 | J7: =F7/D7 -> 0 | K7: =G7/D7 -> 0.7058823529 | L7: =SUM(I7:K7) -> 0.7058823529
A8: CA | B8: CIRCUIT CIVIL | D8: 18915 | E8: 0 | F8: 0 | G8: 15398 | H8: =E8+F8+G8 -> 15398 | I8: =E8/D8 -> 0 | J8: =F8/D8 -> 0 | K8: =G8/D8 -> 0.814062913 | L8: =SUM(I8:K8) -> 0.814062913
A9: SC | B9: COUNTY CIVIL SMALL CLAIMS | D9: 4404 | E9: 0 | F9: 0 | G9: 3471 | H9: 3471 | I9: 0 | J9: 0 | K9: 0.788147139 | L9: 0.788147139
A10: DR | B10: CIRCUIT CIVIL FAMILY | D10: 15487 | E10: 0 | F10: 0 | G10: 8302 | H10: 8302 | I10: 0 | J10: 0 | K10: 0.536062504 | L10: 0.536062504
A11: CP | B11: CIRCUIT CIVIL PROBATE | D11: 4011 | E11: 0 | F11: 0 | G11: 3320 | H11: 3320 | I11: 0 | J11: 0 | K11: 0.8277237597 | L11: 0.8277237597
A12: GA | B12: CIRCUIT CIVIL GUARDIANSHIP | D12: 1871 | E12: 0 | F12: 0 | G12: 1788 | H12: 1788 | I12: 0 | J12: 0 | K12: 0.9556386959 | L12: 0.9556386959
A13: MH | B13: CIRCUIT CIVIL MENTAL HEALTH | D13: 811 | E13: 0 | F13: 0 | G13: 281 | H13: 281 | I13: 0 | J13: 0 | K13: 0.34648582 | L13: 0.34648582
A14: CC | B14: COUNTY CIVIL | D14: 5052 | E14: 0 | F14: 0 | G14: 3326 | H14: 3326 | I14: 0 | J14: 0 | K14: 0.6583531275 | L14: 0.6583531275
A15: DP | B15: CIRCUIT JUVENILE DEPENDENCY | D15: 2762 | E15: 0 | F15: 0 | G15: 1838 | H15: 1838 | I15: 0 | J15: 0 | K15: 0.6654598117 | L15: 0.6654598117
A16: TOTAL OF CIVIL DOCUMENTS | D16: =SUM(D7:D15) -> 53364 | E16: =SUM(E7:E15) -> 0 | F16: 0 | G16: =SUM(G7:G15) -> 37760 | H16: =SUM(H7:H15) -> 37760 | I16: =E16/D16 -> 0 | J16: 0 | K16: 0.7075931339 | L16: 0.7075931339
A18: CJ | B18: CIRCUIT JUVENILE DELINQUENCY | D18: 6342 | E18: 4649 | F18: 0 | G18: 1128 | H18: =SUM(E18:G18) -> 5777 | I18: =E18/D18 -> 0.7330495112 | J18: =F18/D18 -> 0 | K18: =G18/D18 -> 0.1778618732 | L18: =H18/D18 -> 0.9109113844
A19: CF | B19: CIRCUIT CRIMINAL FELONY | D19: 30678 | E19: 9013 | F19: 385 | G19: 7056 | H19: =SUM(E19:G19) -> 16454 | I19: 0.293793598 | J19: =F19/D19 -> 0.01254970989 | K19: =G19/D19 -> 0.2300019558 | L19: =H19/D19 -> 0.5363452637
A20: MM | B20: COUNTY CRIMINAL MISDEMEANOR | D20: 15401 | E20: 7173 | F20: 188 | G20: 2418 | H20: 9779 | I20: 0.4657489773 | J20: 0.01220699955 | K20: 0.157002792 | L20: 0.6349587689
A21: CO | B21: COUNTY ORDINANCE | D21: 101 | E21: 52 | F21: 0 | G21: 11 | H21: 63 | I21: 0.5148514851 | J21: 0 | K21: 0.1089108911 | L21: 0.6237623762
A22: MO | B22: COUNTY COURT MUNICIPAL ORDINANCE | D22: 211 | E22: 94 | F22: 19 | G22: 21 | H22: 134 | I22: 0.4454976303 | J22: 0.09004739336 | K22: 0.09952606635 | L22: 0.63507109
A23: IN | B23: COUNTY COURT INFRACTIONS | D23: 365 | E23: 13 | F23: 0 | G23: 8 | H23: 21 | I23: 0.03561643836 | J23: 0 | K23: 0.02191780822 | L23: 0.05753424658
A24: CT | B24: COUNTY CRIMINAL TRAFFIC | D24: 11897 | E24: 6232 | F24: 460 | G24: 1507 | H24: 8199 | I24: 0.5238295369 | J24: 0.03866520972 | K24: 0.1266705892 | L24: 0.6891653358
A25: TOTAL OF CRIMINAL DOCUMENTS | D25: =SUM(D18:D24) -> 64995 | E25: =SUM(E18:E24) -> 27226 | F25: =SUM(F18:F24) -> 1052 | G25: =SUM(G18:G24) -> 12149 | H25: =SUM(E25:G25) -> 40427 | I25: 0.4188937611 | J25: 0.01618586045 | K25: 0.1869220709 | L25: 0.6220016924
A27: TR | B27: COUNTY CIVIL TRAFFIC | D27: 8299 | E27: 918 | F27: 168 | G27: 285 | H27: 0 | I27: =E27/D27 -> 0.1106157368 | J27: =F27/D27 -> 0.02024340282 | K27: =G27/D27 -> 0.03434148693 | L27: =H27/D27 -> 0
A29: TOTAL ALL COURT DOCUMENTS | D29: =D16+D25+D27 -> 126658 | E29: =E16+E25+E27 -> 28144 | F29: =F16+F25+F27 -> 1220 | G29: =G16+G25+G27 -> 50194 | H29: =SUM(E29:G29) -> 79558 | I29: =E29/D29 -> 0.2222046772 | J29: =F29/D29 -> 0.009632237995 | K29: =G29/D29 -> 0.396295536 | L29: =H29/D29 -> 0.6281324512

Sheet JUL16
A1: CLERK OF THE COURTS
A2: BREVARD COUNTY, FLORIDA
A3: Document Source Statistics July 2016
A4: Number of Documents Filed by Case Category
A6: Case | B6: Category | D6: Total # of Documents Filed | E6: Documents Filed InCourt | F6: Documents Filed Informix | G6: Documents e-Filed | H6: Total Docs Auto-Docketed | I6: % of TOTAL InCourt | J6: % of TOTAL Informix | K6: % of TOTAL e-Filed | L6: Total % of Documents Auto Docketed
A7: AP | B7: APPEALS | D7: 61 | E7: 0 | F7: 1 | G7: 35 | H7: =E7+F7+G7 -> 36 | I7: =E7/D7 -> 0 | J7: =F7/D7 -> 0.01639344262 | K7: =G7/D7 -> 0.5737704918 | L7: =SUM(I7:K7) -> 0.5901639344
A8: CA | B8: CIRCUIT CIVIL | D8: 17258 | E8: 0 | F8: 286 | G8: 13833 | H8: =E8+F8+G8 -> 14119 | I8: =E8/D8 -> 0 | J8: =F8/D8 -> 0.01657202457 | K8: =G8/D8 -> 0.8015413142 | L8: =SUM(I8:K8) -> 0.8181133387
A9: SC | B9: COUNTY CIVIL SMALL CLAIMS | D9: 3347 | E9: 0 | F9: 42 | G9: 2626 | H9: 2668 | I9: 0 | J9: 0.01254855094 | K9: 0.7845832088 | L9: 0.7971317598
A10: DR | B10: CIRCUIT CIVIL FAMILY | D10: 14536 | E10: 0 | F10: 132 | G10: 8142 | H10: 8274 | I10: 0 | J10: 0.009080902587 | K10: 0.5601265823 | L10: 0.5692074849
A11: CP | B11: CIRCUIT CIVIL PROBATE | D11: 4030 | E11: 0 | F11: 94 | G11: 3361 | H11: 3455 | I11: 0 | J11: 0.02332506203 | K11: 0.8339950372 | L11: 0.8573200993
A12: GA | B12: CIRCUIT CIVIL GUARDIANSHIP | D12: 1646 | E12: 0 | F12: 30 | G12: 1599 | H12: 1629 | I12: 0 | J12: 0.01822600243 | K12: 0.9714459295 | L12: 0.989671932
A13: MH | B13: CIRCUIT CIVIL MENTAL HEALTH | D13: 628 | E13: 0 | F13: 16 | G13: 218 | H13: 234 | I13: 0 | J13: 0.02547770701 | K13: 0.347133758 | L13: 0.372611465
A14: CC | B14: COUNTY CIVIL | D14: 4798 | E14: 0 | F14: 77 | G14: 3236 | H14: 3313 | I14: 0 | J14: 0.01604835348 | K14: 0.6744476865 | L14: 0.69049604
A15: DP | B15: CIRCUIT JUVENILE DEPENDENCY | D15: 2550 | E15: 0 | F15: 28 | G15: 1729 | H15: 1757 | I15: 0 | J15: 0.01098039216 | K15: 0.6780392157 | L15: 0.6890196078
A16: TOTAL OF CIVIL DOCUMENTS | D16: =SUM(D7:D15) -> 48854 | E16: =SUM(E7:E15) -> 0 | F16: =SUM(F7:F15) -> 706 | G16: =SUM(G7:G15) -> 34779 | H16: =SUM(H7:H15) -> 35485 | I16: =E16/D16 -> 0 | J16: 0.01445122201 | K16: 0.7118966717 | L16: 0.7263478937
A18: CJ | B18: CIRCUIT JUVENILE DELINQUENCY | D18: 6679 | E18: 5027 | F18: 30 | G18: 1053 | H18: =SUM(E18:G18) -> 6110 | I18: =E18/D18 -> 0.7526575835 | J18: =F18/D18 -> 0.004491690373 | K18: =G18/D18 -> 0.1576583321 | L18: =H18/D18 -> 0.9148076059
A19: CF | B19: CIRCUIT CRIMINAL FELONY | D19: 26250 | E19: 7698 | F19: 697 | G19: 6001 | H19: =SUM(E19:G19) -> 14396 | I19: 0.2932571429 | J19: =F19/D19 -> 0.02655238095 | K19: =G19/D19 -> 0.2286095238 | L19: =H19/D19 -> 0.5484190476
A20: MM | B20: COUNTY CRIMINAL MISDEMEANOR | D20: 11920 | E20: 4205 | F20: 278 | G20: 1984 | H20: 6467 | I20: 0.3527684564 | J20: 0.02332214765 | K20: 0.166442953 | L20: 0.542533557
A21: CO | B21: COUNTY ORDINANCE | D21: 92 | E21: 18 | F21: 0 | G21: 14 | H21: 32 | I21: 0.1956521739 | J21: 0 | K21: 0.152173913 | L21: 0.347826087
A22: MO | B22: COUNTY COURT MUNICIPAL ORDINANCE | D22: 266 | E22: 76 | F22: 15 | G22: 33 | H22: 124 | I22: 0.2857142857 | J22: 0.05639097744 | K22: 0.1240601504 | L22: 0.4661654135
A23: IN | B23: COUNTY COURT INFRACTIONS | D23: 470 | E23: 17 | F23: 6 | G23: 3 | H23: 26 | I23: 0.03617021277 | J23: 0.01276595745 | K23: 0.006382978723 | L23: 0.05531914894
A24: CT | B24: COUNTY CRIMINAL TRAFFIC | D24: 9548 | E24: 4101 | F24: 403 | G24: 1331 | H24: 5835 | I24: 0.4295140344 | J24: 0.04220779221 | K24: 0.1394009217 | L24: 0.6111227482
A25: TOTAL OF CRIMINAL DOCUMENTS | D25: =SUM(D18:D24) -> 55225 | E25: =SUM(E18:E24) -> 21142 | F25: =SUM(F18:F24) -> 1429 | G25: =SUM(G18:G24) -> 10419 | H25: =SUM(E25:G25) -> 32990 | I25: 0.3828338615 | J25: 0.02587596197 | K25: 0.1886645541 | L25: 0.5973743775
A27: TR | B27: COUNTY CIVIL TRAFFIC | D27: 6862 | E27: 748 | F27: 214 | G27: 223 | H27: 0 | I27: =E27/D27 -> 0.1090061207 | J27: =F27/D27 -> 0.03118624308 | K27: =G27/D27 -> 0.03249781405 | L27: =H27/D27 -> 0
A29: TOTAL ALL COURT DOCUMENTS | D29: =D16+D25+D27 -> 110941 | E29: =E16+E25+E27 -> 21890 | F29: =F16+F25+F27 -> 2349 | G29: =G16+G25+G27 -> 45421 | H29: =SUM(E29:G29) -> 69660 | I29: =E29/D29 -> 0.1973120848 | J29: =F29/D29 -> 0.0211734165 | K29: =G29/D29 -> 0.4094158156 | L29: =H29/D29 -> 0.6279013169

Sheet AUG16
A1: CLERK OF THE COURTS
A2: BREVARD COUNTY, FLORIDA
A3: Document Source Statistics August 2016
A4: Number of Documents Filed by Case Category
A6: Case | B6: Category | D6: Total # of Documents Filed | E6: Documents Filed InCourt | F6: Documents Filed Informix | G6: Documents e-Filed | H6: Total Docs Auto-Docketed | I6: % of TOTAL InCourt | J6: % of TOTAL Informix | K6: % of TOTAL e-Filed | L6: Total % of Documents Auto Docketed
A7: AP | B7: APPEALS | D7: 70 | E7: 0 | F7: 0 | G7: 47 | H7: =E7+F7+G7 -> 47 | I7: =E7/D7 -> 0 | J7: =F7/D7 -> 0 | K7: =G7/D7 -> 0.6714285714 | L7: =SUM(I7:K7) -> 0.6714285714
A8: CA | B8: CIRCUIT CIVIL | D8: 19782 | E8: 0 | F8: 0 | G8: 15376 | H8: =E8+F8+G8 -> 15376 | I8: =E8/D8 -> 0 | J8: =F8/D8 -> 0 | K8: =G8/D8 -> 0.7772722677 | L8: =SUM(I8:K8) -> 0.7772722677
A9: SC | B9: COUNTY CIVIL SMALL CLAIMS | D9: 4448 | E9: 0 | F9: 0 | G9: 3402 | H9: 3402 | I9: 0 | J9: 0 | K9: 0.7648381295 | L9: 0.7648381295
A10: DR | B10: CIRCUIT CIVIL FAMILY | D10: 16298 | E10: 0 | F10: 0 | G10: 8450 | H10: 8450 | I10: 0 | J10: 0 | K10: 0.5184685237 | L10: 0.5184685237
A11: CP | B11: CIRCUIT CIVIL PROBATE | D11: 4989 | E11: 0 | F11: 0 | G11: 4098 | H11: 4098 | I11: 0 | J11: 0 | K11: 0.8214070956 | L11: 0.8214070956
A12: GA | B12: CIRCUIT CIVIL GUARDIANSHIP | D12: 2015 | E12: 0 | F12: 0 | G12: 1871 | H12: 1871 | I12: 0 | J12: 0 | K12: 0.9285359801 | L12: 0.9285359801
A13: MH | B13: CIRCUIT CIVIL MENTAL HEALTH | D13: 655 | E13: 0 | F13: 0 | G13: 290 | H13: 290 | I13: 0 | J13: 0 | K13: 0.4427480916 | L13: 0.4427480916
A14: CC | B14: COUNTY CIVIL | D14: 5434 | E14: 0 | F14: 0 | G14: 3263 | H14: 3263 | I14: 0 | J14: 0 | K14: 0.6004784689 | L14: 0.6004784689
A15: DP | B15: CIRCUIT JUVENILE DEPENDENCY | D15: 2816 | E15: 0 | F15: 0 | G15: 1849 | H15: 1849 | I15: 0 | J15: 0 | K15: 0.6566051136 | L15: 0.6566051136
A16: TOTAL OF CIVIL DOCUMENTS | D16: =SUM(D7:D15) -> 56507 | E16: =SUM(E7:E15) -> 0 | F16: 0 | G16: =SUM(G7:G15) -> 38646 | H16: =SUM(H7:H15) -> 38646 | I16: =E16/D16 -> 0 | J16: 0 | K16: 0.6839152671 | L16: 0.6839152671
A18: CJ | B18: CIRCUIT JUVENILE DELINQUENCY | D18: 6925 | E18: 4756 | F18: 1 | G18: 1152 | H18: =SUM(E18:G18) -> 5909 | I18: =E18/D18 -> 0.6867870036 | J18: =F18/D18 -> 0.0001444043321 | K18: =G18/D18 -> 0.1663537906 | L18: =H18/D18 -> 0.8532851986
A19: CF | B19: CIRCUIT CRIMINAL FELONY | D19: 29956 | E19: 8997 | F19: 406 | G19: 7172 | H19: =SUM(E19:G19) -> 16575 | I19: 0.3003404994 | J19: =F19/D19 -> 0.01355321138 | K19: =G19/D19 -> 0.2394178128 | L19: =H19/D19 -> 0.5533115236
A20: MM | B20: COUNTY CRIMINAL MISDEMEANOR | D20: 15108 | E20: 6584 | F20: 153 | G20: 2321 | H20: 9058 | I20: 0.435795605 | J20: 0.01012708499 | K20: 0.1536272174 | L20: 0.5995499073
A21: CO | B21: COUNTY ORDINANCE | D21: 153 | E21: 32 | F21: 2 | G21: 13 | H21: 47 | I21: 0.2091503268 | J21: 0.01307189542 | K21: 0.08496732026 | L21: 0.3071895425
A22: MO | B22: COUNTY COURT MUNICIPAL ORDINANCE | D22: 362 | E22: 166 | F22: 22 | G22: 51 | H22: 239 | I22: 0.4585635359 | J22: 0.06077348066 | K22: 0.1408839779 | L22: 0.6602209945
A23: IN | B23: COUNTY COURT INFRACTIONS | D23: 346 | E23: 29 | F23: 263 | G23: 5 | H23: 297 | I23: 0.0838150289 | J23: 0.7601156069 | K23: 0.01445086705 | L23: 0.8583815029
A24: CT | B24: COUNTY CRIMINAL TRAFFIC | D24: 12475 | E24: 6159 | F24: 0 | G24: 1598 | H24: 7757 | I24: 0.4937074148 | J24: 0 | K24: 0.1280961924 | L24: 0.6218036072
A25: TOTAL OF CRIMINAL DOCUMENTS | D25: =SUM(D18:D24) -> 65325 | E25: =SUM(E18:E24) -> 26723 | F25: =SUM(F18:F24) -> 847 | G25: =SUM(G18:G24) -> 12312 | H25: =SUM(E25:G25) -> 39882 | I25: 0.4090776885 | J25: 0.01296593953 | K25: 0.1884730195 | L25: 0.6105166475
A27: TR | B27: COUNTY CIVIL TRAFFIC | D27: 7504 | E27: 988 | F27: 98 | G27: 248 | H27: 0 | I27: =E27/D27 -> 0.131663113 | J27: =F27/D27 -> 0.01305970149 | K27: =G27/D27 -> 0.03304904051 | L27: =H27/D27 -> 0
A29: TOTAL ALL COURT DOCUMENTS | D29: =D16+D25+D27 -> 129336 | E29: =E16+E25+E27 -> 27711 | F29: =F16+F25+F27 -> 945 | G29: =G16+G25+G27 -> 51206 | H29: =SUM(E29:G29) -> 79862 | I29: =E29/D29 -> 0.2142558916 | J29: =F29/D29 -> 0.00730655038 | K29: =G29/D29 -> 0.3959145172 | L29: =H29/D29 -> 0.6174769592

Sheet SEP16
A1: CLERK OF THE COURTS
A2: BREVARD COUNTY, FLORIDA
A3: Document Source Statistics September 2016
A4: Number of Documents Filed by Case Category
A6: Case | B6: Category | D6: Total # of Documents Filed | E6: Documents Filed InCourt | F6: Documents Filed Informix | G6: Documents e-Filed | H6: Total Docs Auto-Docketed | I6: % of TOTAL InCourt | J6: % of TOTAL Informix | K6: % of TOTAL e-Filed | L6: Total % of Documents Auto Docketed
A7: AP | B7: APPEALS | D7: 43 | E7: 0 | F7: 0 | G7: 36 | H7: =E7+F7+G7 -> 36 | I7: =E7/D7 -> 0 | J7: =F7/D7 -> 0 | K7: =G7/D7 -> 0.8372093023 | L7: =SUM(I7:K7) -> 0.8372093023
A8: CA | B8: CIRCUIT CIVIL | D8: 17526 | E8: 0 | F8: 0 | G8: 14130 | H8: =E8+F8+G8 -> 14130 | I8: =E8/D8 -> 0 | J8: =F8/D8 -> 0 | K8: =G8/D8 -> 0.8062307429 | L8: =SUM(I8:K8) -> 0.8062307429
A9: SC | B9: COUNTY CIVIL SMALL CLAIMS | D9: 3970 | E9: 0 | F9: 0 | G9: 3152 | H9: 3152 | I9: 0 | J9: 0 | K9: 0.7939546599 | L9: 0.7939546599
A10: DR | B10: CIRCUIT CIVIL FAMILY | D10: 15026 | E10: 0 | F10: 1 | G10: 7531 | H10: 7532 | I10: 0 | J10: 6.655131106e-05 | K10: 0.5011979236 | L10: 0.5012644749
A11: CP | B11: CIRCUIT CIVIL PROBATE | D11: 3977 | E11: 0 | F11: 1 | G11: 3267 | H11: 3268 | I11: 0 | J11: 0.0002514458134 | K11: 0.8214734725 | L11: 0.8217249183
A12: GA | B12: CIRCUIT CIVIL GUARDIANSHIP | D12: 1604 | E12: 0 | F12: 0 | G12: 1520 | H12: 1520 | I12: 0 | J12: 0 | K12: 0.9476309227 | L12: 0.9476309227
A13: MH | B13: CIRCUIT CIVIL MENTAL HEALTH | D13: 557 | E13: 0 | F13: 0 | G13: 182 | H13: 182 | I13: 0 | J13: 0 | K13: 0.3267504488 | L13: 0.3267504488
A14: CC | B14: COUNTY CIVIL | D14: 5001 | E14: 0 | F14: 0 | G14: 3240 | H14: 3240 | I14: 0 | J14: 0 | K14: 0.6478704259 | L14: 0.6478704259
A15: DP | B15: CIRCUIT JUVENILE DEPENDENCY | D15: 2639 | E15: 0 | F15: 0 | G15: 1707 | H15: 1707 | I15: 0 | J15: 0 | K15: 0.6468359227 | L15: 0.6468359227
A16: TOTAL OF CIVIL DOCUMENTS | D16: =SUM(D7:D15) -> 50343 | E16: =SUM(E7:E15) -> 0 | F16: =SUM(F7:F15) -> 2 | G16: =SUM(G7:G15) -> 34765 | H16: =SUM(H7:H15) -> 34767 | I16: =E16/D16 -> 0 | J16: 3.972746956e-05 | K16: 0.6905627396 | L16: 0.6906024671
A18: CJ | B18: CIRCUIT JUVENILE DELINQUENCY | D18: 7650 | E18: 5063 | F18: 25 | G18: 1160 | H18: =SUM(E18:G18) -> 6248 | I18: =E18/D18 -> 0.6618300654 | J18: =F18/D18 -> 0.003267973856 | K18: =G18/D18 -> 0.1516339869 | L18: =H18/D18 -> 0.8167320261
A19: CF | B19: CIRCUIT CRIMINAL FELONY | D19: 29055 | E19: 10210 | F19: 386 | G19: 6772 | H19: =SUM(E19:G19) -> 17368 | I19: 0.3514025125 | J19: =F19/D19 -> 0.01328514886 | K19: =G19/D19 -> 0.2330752022 | L19: =H19/D19 -> 0.5977628635
A20: MM | B20: COUNTY CRIMINAL MISDEMEANOR | D20: 14210 | E20: 6570 | F20: 173 | G20: 2149 | H20: 8892 | I20: 0.4623504574 | J20: 0.01217452498 | K20: 0.1512315271 | L20: 0.6257565095
A21: CO | B21: COUNTY ORDINANCE | D21: 91 | E21: 48 | F21: 0 | G21: 16 | H21: 64 | I21: 0.5274725275 | J21: 0 | K21: 0.1758241758 | L21: 0.7032967033
A22: MO | B22: COUNTY COURT MUNICIPAL ORDINANCE | D22: 359 | E22: 174 | F22: 24 | G22: 59 | H22: 257 | I22: 0.4846796657 | J22: 0.06685236769 | K22: 0.1643454039 | L22: 0.7158774373
A23: IN | B23: COUNTY COURT INFRACTIONS | D23: 310 | E23: 13 | F23: 0 | G23: 7 | H23: 20 | I23: 0.04193548387 | J23: 0 | K23: 0.02258064516 | L23: 0.06451612903
A24: CT | B24: COUNTY CRIMINAL TRAFFIC | D24: 11882 | E24: 6288 | F24: 478 | G24: 1427 | H24: 8193 | I24: 0.5292038377 | J24: 0.04022891769 | K24: 0.1200976267 | L24: 0.6895303821
A25: TOTAL OF CRIMINAL DOCUMENTS | D25: =SUM(D18:D24) -> 63557 | E25: =SUM(E18:E24) -> 28366 | F25: =SUM(F18:F24) -> 1086 | G25: =SUM(G18:G24) -> 11590 | H25: =SUM(E25:G25) -> 41042 | I25: 0.4463080385 | J25: 0.01708702425 | K25: 0.1823559954 | L25: 0.6457510581
A27: TR | B27: COUNTY CIVIL TRAFFIC | D27: 6733 | E27: 848 | F27: 57 | G27: 250 | H27: 0 | I27: =E27/D27 -> 0.1259468291 | J27: =F27/D27 -> 0.008465765632 | K27: =G27/D27 -> 0.03713055102 | L27: =H27/D27 -> 0
A29: TOTAL ALL COURT DOCUMENTS | D29: =D16+D25+D27 -> 120633 | E29: =E16+E25+E27 -> 29214 | F29: =F16+F25+F27 -> 1145 | G29: =G16+G25+G27 -> 46605 | H29: =SUM(E29:G29) -> 76964 | I29: =E29/D29 -> 0.2421725399 | J29: =F29/D29 -> 0.009491598485 | K29: =G29/D29 -> 0.3863370719 | L29: =H29/D29 -> 0.6380012103

Sheet OCT16
A1: CLERK OF THE COURTS
A2: BREVARD COUNTY, FLORIDA
A3: Document Source Statistics October 2016
A4: Number of Documents Filed by Case Category
A6: Case | B6: Category | D6: Total # of Documents Filed | E6: Documents Filed InCourt | F6: Documents Filed Informix | G6: Documents e-Filed | H6: Total Docs Auto-Docketed | I6: % of TOTAL InCourt | J6: % of TOTAL Informix | K6: % of TOTAL e-Filed | L6: Total % of Documents Auto Docketed
A7: AP | B7: APPEALS | D7: 48 | E7: 0 | F7: 0 | G7: 38 | H7: =E7+F7+G7 -> 38 | I7: =E7/D7 -> 0 | J7: =F7/D7 -> 0 | K7: =G7/D7 -> 0.7916666667 | L7: =SUM(I7:K7) -> 0.7916666667
A8: CA | B8: CIRCUIT CIVIL | D8: 15492 | E8: 0 | F8: 0 | G8: 12599 | H8: =E8+F8+G8 -> 12599 | I8: =E8/D8 -> 0 | J8: =F8/D8 -> 0 | K8: =G8/D8 -> 0.813258456 | L8: =SUM(I8:K8) -> 0.813258456
A9: SC | B9: COUNTY CIVIL SMALL CLAIMS | D9: 3865 | E9: 0 | F9: 0 | G9: 3093 | H9: 3093 | I9: 0 | J9: 0 | K9: 0.8002587322 | L9: 0.8002587322
A10: DR | B10: CIRCUIT CIVIL FAMILY | D10: 14204 | E10: 0 | F10: 0 | G10: 6978 | H10: 6978 | I10: 0 | J10: 0 | K10: 0.4912700648 | L10: 0.4912700648
A11: CP | B11: CIRCUIT CIVIL PROBATE | D11: 3758 | E11: 0 | F11: 0 | G11: 3114 | H11: 3114 | I11: 0 | J11: 0 | K11: 0.8286322512 | L11: 0.8286322512
A12: GA | B12: CIRCUIT CIVIL GUARDIANSHIP | D12: 1500 | E12: 0 | F12: 0 | G12: 1432 | H12: 1432 | I12: 0 | J12: 0 | K12: 0.9546666667 | L12: 0.9546666667
A13: MH | B13: CIRCUIT CIVIL MENTAL HEALTH | D13: 623 | E13: 0 | F13: 0 | G13: 261 | H13: 261 | I13: 0 | J13: 0 | K13: 0.41894061 | L13: 0.41894061
A14: CC | B14: COUNTY CIVIL | D14: 4520 | E14: 0 | F14: 0 | G14: 3067 | H14: 3067 | I14: 0 | J14: 0 | K14: 0.678539823 | L14: 0.678539823
A15: DP | B15: CIRCUIT JUVENILE DEPENDENCY | D15: 2540 | E15: 0 | F15: 0 | G15: 1842 | H15: 1842 | I15: 0 | J15: 0 | K15: 0.7251968504 | L15: 0.7251968504
A16: TOTAL OF CIVIL DOCUMENTS | D16: =SUM(D7:D15) -> 46550 | E16: =SUM(E7:E15) -> 0 | F16: 0 | G16: =SUM(G7:G15) -> 32424 | H16: =SUM(H7:H15) -> 32424 | I16: =E16/D16 -> 0 | J16: 0 | K16: 0.6965413534 | L16: 0.6965413534
A18: CJ | B18: CIRCUIT JUVENILE DELINQUENCY | D18: 6481 | E18: 3756 | F18: 3 | G18: 1072 | H18: =SUM(E18:G18) -> 4831 | I18: =E18/D18 -> 0.5795401944 | J18: =F18/D18 -> 0.0004628915291 | K18: =G18/D18 -> 0.1654065731 | L18: =H18/D18 -> 0.745409659
A19: CF | B19: CIRCUIT CRIMINAL FELONY | D19: 24623 | E19: 8365 | F19: 314 | G19: 5662 | H19: =SUM(E19:G19) -> 14341 | I19: 0.3397230232 | J19: =F19/D19 -> 0.01275230476 | K19: =G19/D19 -> 0.22994761 | L19: =H19/D19 -> 0.5824229379
A20: MM | B20: COUNTY CRIMINAL MISDEMEANOR | D20: 12830 | E20: 5475 | F20: 132 | G20: 1837 | H20: 7444 | I20: 0.4267342167 | J20: 0.01028838659 | K20: 0.1431800468 | L20: 0.58020265
A21: CO | B21: COUNTY ORDINANCE | D21: 92 | E21: 32 | F21: 0 | G21: 18 | H21: 50 | I21: 0.347826087 | J21: 0 | K21: 0.1956521739 | L21: 0.5434782609
A22: MO | B22: COUNTY COURT MUNICIPAL ORDINANCE | D22: 273 | E22: 148 | F22: 16 | G22: 46 | H22: 210 | I22: 0.5421245421 | J22: 0.05860805861 | K22: 0.1684981685 | L22: 0.7692307692
A23: IN | B23: COUNTY COURT INFRACTIONS | D23: 363 | E23: 16 | F23: 0 | G23: 9 | H23: 25 | I23: 0.04407713499 | J23: 0 | K23: 0.02479338843 | L23: 0.06887052342
A24: CT | B24: COUNTY CRIMINAL TRAFFIC | D24: 10630 | E24: 5552 | F24: 265 | G24: 1325 | H24: 7142 | I24: 0.5222953904 | J24: 0.02492944497 | K24: 0.1246472248 | L24: 0.6718720602
A25: TOTAL OF CRIMINAL DOCUMENTS | D25: =SUM(D18:D24) -> 55292 | E25: =SUM(E18:E24) -> 23344 | F25: =SUM(F18:F24) -> 730 | G25: =SUM(G18:G24) -> 9969 | H25: =SUM(E25:G25) -> 34043 | I25: 0.4221948926 | J25: 0.01320263329 | K25: 0.1802973305 | L25: 0.6156948564
A27: TR | B27: COUNTY CIVIL TRAFFIC | D27: 5555 | E27: 583 | F27: 82 | G27: 199 | H27: 0 | I27: =E27/D27 -> 0.104950495 | J27: =F27/D27 -> 0.01476147615 | K27: =G27/D27 -> 0.03582358236 | L27: =H27/D27 -> 0
A29: TOTAL ALL COURT DOCUMENTS | D29: =D16+D25+D27 -> 107397 | E29: =E16+E25+E27 -> 23927 | F29: =F16+F25+F27 -> 812 | G29: =G16+G25+G27 -> 42592 | H29: =SUM(E29:G29) -> 67331 | I29: =E29/D29 -> 0.2227902083 | J29: =F29/D29 -> 0.007560732609 | K29: =G29/D29 -> 0.3965846346 | L29: =H29/D29 -> 0.6269355755

Sheet NOV16
A1: CLERK OF THE COURTS
A2: BREVARD COUNTY, FLORIDA
A3: Document Source Statistics November 2016
A4: Number of Documents Filed by Case Category
A6: Case | B6: Category | D6: Total # of Documents Filed | E6: Documents Filed InCourt | F6: Documents Filed Informix | G6: Documents e-Filed | H6: Total Docs Auto-Docketed | I6: % of TOTAL InCourt | J6: % of TOTAL Informix | K6: % of TOTAL e-Filed | L6: Total % of Documents Auto Docketed
A7: AP | B7: APPEALS | D7: 0 | E7: 0 | F7: 0 | G7: 0 | H7: =E7+F7+G7 -> 0 | I7: =E7/D7 ->  | J7: =F7/D7 ->  | K7: =G7/D7 ->  | L7: =SUM(I7:K7) -> 
A8: CA | B8: CIRCUIT CIVIL | D8: 0 | E8: 0 | F8: 0 | G8: 0 | H8: =E8+F8+G8 -> 0 | I8: =E8/D8 ->  | J8: =F8/D8 ->  | K8: =G8/D8 ->  | L8: =SUM(I8:K8) -> 
A9: SC | B9: COUNTY CIVIL SMALL CLAIMS | D9: 0 | E9: 0 | F9: 0 | G9: 0 | H9: 0
A10: DR | B10: CIRCUIT CIVIL FAMILY | D10: 0 | E10: 0 | F10: 0 | G10: 0 | H10: 0
A11: CP | B11: CIRCUIT CIVIL PROBATE | D11: 0 | E11: 0 | F11: 0 | G11: 0 | H11: 0
A12: GA | B12: CIRCUIT CIVIL GUARDIANSHIP | D12: 0 | E12: 0 | F12: 0 | G12: 0 | H12: 0
A13: MH | B13: CIRCUIT CIVIL MENTAL HEALTH | D13: 0 | E13: 0 | F13: 0 | G13: 0 | H13: 0
A14: CC | B14: COUNTY CIVIL | D14: 0 | E14: 0 | F14: 0 | G14: 0 | H14: 0
A15: DP | B15: CIRCUIT JUVENILE DEPENDENCY | D15: 0 | E15: 0 | F15: 0 | G15: 0 | H15: 0
A16: TOTAL OF CIVIL DOCUMENTS | D16: =SUM(D7:D15) -> 0 | E16: =SUM(E7:E15) -> 0 | F16: 0 | G16: =SUM(G7:G15) -> 0 | H16: =SUM(H7:H15) -> 0 | I16: =E16/D16 -> 
A18: CJ | B18: CIRCUIT JUVENILE DELINQUENCY | D18: 0 | E18: 0 | F18: 0 | G18: 0 | H18: =SUM(E18:G18) -> 0 | I18: =E18/D18 ->  | J18: =F18/D18 ->  | K18: =G18/D18 ->  | L18: =H18/D18 -> 
A19: CF | B19: CIRCUIT CRIMINAL FELONY | D19: 0 | E19: 0 | F19: 0 | G19: 0 | H19: =SUM(E19:G19) -> 0 | J19: =F19/D19 ->  | K19: =G19/D19 ->  | L19: =H19/D19 -> 
A20: MM | B20: COUNTY CRIMINAL MISDEMEANOR | D20: 0 | E20: 0 | F20: 0 | G20: 0 | H20: 0
A21: CO | B21: COUNTY ORDINANCE | D21: 0 | E21: 0 | F21: 0 | G21: 0 | H21: 0
A22: MO | B22: COUNTY COURT MUNICIPAL ORDINANCE | D22: 0 | E22: 0 | F22: 0 | G22: 0 | H22: 0
A23: IN | B23: COUNTY COURT INFRACTIONS | D23: 0 | E23: 0 | F23: 0 | G23: 0 | H23: 0
A24: CT | B24: COUNTY CRIMINAL TRAFFIC | D24: 0 | E24: 0 | F24: 0 | G24: 0 | H24: 0
A25: TOTAL OF CRIMINAL DOCUMENTS | D25: =SUM(D18:D24) -> 0 | E25: =SUM(E18:E24) -> 0 | F25: =SUM(F18:F24) -> 0 | G25: =SUM(G18:G24) -> 0 | H25: =SUM(E25:G25) -> 0
A27: TR | B27: COUNTY CIVIL TRAFFIC | D27: 0 | E27: 0 | F27: 0 | G27: 0 | H27: 0 | I27: =E27/D27 ->  | J27: =F27/D27 ->  | K27: =G27/D27 ->  | L27: =H27/D27 -> 
A29: TOTAL ALL COURT DOCUMENTS | D29: =D16+D25+D27 -> 0 | E29: =E16+E25+E27 -> 0 | F29: =F16+F25+F27 -> 0 | G29: =G16+G25+G27 -> 0 | H29: =SUM(E29:G29) -> 0 | I29: =E29/D29 ->  | J29: =F29/D29 ->  | K29: =G29/D29 ->  | L29: =H29/D29 -> 

Sheet DEC16
A1: CLERK OF THE COURTS
A2: BREVARD COUNTY, FLORIDA
A3: Document Source Statistics December 2016
A4: Number of Documents Filed by Case Category
A6: Case | B6: Category | D6: Total # of Documents Filed | E6: Documents Filed InCourt | F6: Documents Filed Informix | G6: Documents e-Filed | H6: Total Docs Auto-Docketed | I6: % of TOTAL InCourt | J6: % of TOTAL Informix | K6: % of TOTAL e-Filed | L6: Total % of Documents Auto Docketed
A7: AP | B7: APPEALS | D7: 0 | E7: 0 | F7: 0 | G7: 0 | H7: =E7+F7+G7 -> 0 | I7: =E7/D7 ->  | J7: =F7/D7 ->  | K7: =G7/D7 ->  | L7: =SUM(I7:K7) -> 
A8: CA | B8: CIRCUIT CIVIL | D8: 0 | E8: 0 | F8: 0 | G8: 0 | H8: =E8+F8+G8 -> 0 | I8: =E8/D8 ->  | J8: =F8/D8 ->  | K8: =G8/D8 ->  | L8: =SUM(I8:K8) -> 
A9: SC | B9: COUNTY CIVIL SMALL CLAIMS | D9: 0 | E9: 0 | F9: 0 | G9: 0 | H9: 0
A10: DR | B10: CIRCUIT CIVIL FAMILY | D10: 0 | E10: 0 | F10: 0 | G10: 0 | H10: 0
A11: CP | B11: CIRCUIT CIVIL PROBATE | D11: 0 | E11: 0 | F11: 0 | G11: 0 | H11: 0
A12: GA | B12: CIRCUIT CIVIL GUARDIANSHIP | D12: 0 | E12: 0 | F12: 0 | G12: 0 | H12: 0
A13: MH | B13: CIRCUIT CIVIL MENTAL HEALTH | D13: 0 | E13: 0 | F13: 0 | G13: 0 | H13: 0
A14: CC | B14: COUNTY CIVIL | D14: 0 | E14: 0 | F14: 0 | G14: 0 | H14: 0
A15: DP | B15: CIRCUIT JUVENILE DEPENDENCY | D15: 0 | E15: 0 | F15: 0 | G15: 0 | H15: 0
A16: TOTAL OF CIVIL DOCUMENTS | D16: =SUM(D7:D15) -> 0 | E16: =SUM(E7:E15) -> 0 | F16: 0 | G16: =SUM(G7:G15) -> 0 | H16: =SUM(H7:H15) -> 0 | I16: =E16/D16 -> 
A18: CJ | B18: CIRCUIT JUVENILE DELINQUENCY | D18: 0 | E18: 0 | F18: 0 | G18: 0 | H18: =SUM(E18:G18) -> 0 | I18: =E18/D18 ->  | J18: =F18/D18 ->  | K18: =G18/D18 ->  | L18: =H18/D18 -> 
A19: CF | B19: CIRCUIT CRIMINAL FELONY | D19: 0 | E19: 0 | F19: 0 | G19: 0 | H19: =SUM(E19:G19) -> 0 | J19: =F19/D19 ->  | K19: =G19/D19 ->  | L19: =H19/D19 -> 
A20: MM | B20: COUNTY CRIMINAL MISDEMEANOR | D20: 0 | E20: 0 | F20: 0 | G20: 0 | H20: 0
A21: CO | B21: COUNTY ORDINANCE | D21: 0 | E21: 0 | F21: 0 | G21: 0 | H21: 0
A22: MO | B22: COUNTY COURT MUNICIPAL ORDINANCE | D22: 0 | E22: 0 | F22: 0 | G22: 0 | H22: 0
A23: IN | B23: COUNTY COURT INFRACTIONS | D23: 0 | E23: 0 | F23: 0 | G23: 0 | H23: 0
A24: CT | B24: COUNTY CRIMINAL TRAFFIC | D24: 0 | E24: 0 | F24: 0 | G24: 0 | H24: 0
A25: TOTAL OF CRIMINAL DOCUMENTS | D25: =SUM(D18:D24) -> 0 | E25: =SUM(E18:E24) -> 0 | F25: =SUM(F18:F24) -> 0 | G25: =SUM(G18:G24) -> 0 | H25: =SUM(E25:G25) -> 0
A27: TR | B27: COUNTY CIVIL TRAFFIC | D27: 0 | E27: 0 | F27: 0 | G27: 0 | H27: 0 | I27: =E27/D27 ->  | J27: =F27/D27 ->  | K27: =G27/D27 ->  | L27: =H27/D27 -> 
A29: TOTAL ALL COURT DOCUMENTS | D29: =D16+D25+D27 -> 0 | E29: =E16+E25+E27 -> 0 | F29: =F16+F25+F27 -> 0 | G29: =G16+G25+G27 -> 0 | H29: =SUM(E29:G29) -> 0 | I29: =E29/D29 ->  | J29: =F29/D29 ->  | K29: =G29/D29 ->  | L29: =H29/D29 -> 

Sheet SUMMARY16
A1: CLERK OF THE COURTS
A2: BREVARD COUNTY, FLORIDA
A3: Document Source Statistics January 1, 2016 - December 31, 2016
A4: Number of Documents Filed by Case Category
A6: Case | B6: Category | D6: Total # of Documents Filed | E6: Documents Filed InCourt | F6: Documents Filed Informix | G6: Documents e-Filed | H6: Total Docs Auto-Docketed | I6: % of TOTAL InCourt | J6: % of TOTAL Informix | K6: % of TOTAL e-Filed | L6: Total % of Documents Auto Docketed
A7: AP | B7: APPEALS | D7: ='JAN16'!D7+'FEB16'!D7+'MAR16'!D7+'APR16'!D7+'MAY16'!D7+'JUN16'!D7+'JUL16'!D7+'AUG16'!D7+'SEP16'!D7+'OCT16'!D7+'NOV16'!D7+'DEC16'!D7 -> 555 | E7: 0 | F7: ='JAN16'!F7+'FEB16'!F7+'MAR16'!F7+'APR16'!F7+'MAY16'!F7+'JUN16'!F7+'JUL16'!F7+'AUG16'!F7+'SEP16'!F7+'OCT16'!F7+'NOV16'!F7+'DEC16'!F7 -> 1 | G7: ='JAN16'!G7+'FEB16'!G7+'MAR16'!G7+'APR16'!G7+'MAY16'!G7+'JUN16'!G7+'JUL16'!G7+'AUG16'!G7+'SEP16'!G7+'OCT16'!G7+'NOV16'!G7+'DEC16'!G7 -> 399 | H7: =E7+F7+G7 -> 400 | I7: =E7/D7 -> 0 | J7: =F7/D7 -> 0.001801801802 | K7: =G7/D7 -> 0.7189189189 | L7: =SUM(I7:K7) -> 0.7207207207
A8: CA | B8: CIRCUIT CIVIL | D8: ='JAN16'!D8+'FEB16'!D8+'MAR16'!D8+'APR16'!D8+'MAY16'!D8+'JUN16'!D8+'JUL16'!D8+'AUG16'!D8+'SEP16'!D8+'OCT16'!D8+'NOV16'!D8+'DEC16'!D8 -> 182580 | E8: ='JAN16'!E8+'FEB16'!E8+'MAR16'!E8+'APR16'!E8+'MAY16'!E8+'JUN16'!E8+'JUL16'!E8+'AUG16'!E8+'SEP16'!E8+'OCT16'!E8+'NOV16'!E8+'DEC16'!E8 -> 0 | F8: 0 | G8: ='JAN16'!G8+'FEB16'!G8+'MAR16'!G8+'APR16'!G8+'MAY16'!G8+'JUN16'!G8+'JUL16'!G8+'AUG16'!G8+'SEP16'!G8+'OCT16'!G8+'NOV16'!G8+'DEC16'!G8 -> 145836 | H8: =E8+F8+G8 -> 145836 | I8: =E8/D8 -> 0 | J8: =F8/D8 -> 0 | K8: =G8/D8 -> 0.7987512323 | L8: =SUM(I8:K8) -> 0.7987512323
A9: SC | B9: COUNTY CIVIL SMALL CLAIMS | D9: ='JAN16'!D9+'FEB16'!D9+'MAR16'!D9+'APR16'!D9+'MAY16'!D9+'JUN16'!D9+'JUL16'!D9+'AUG16'!D9+'SEP16'!D9+'OCT16'!D9+'NOV16'!D9+'DEC16'!D9 -> 40074 | E9: ='JAN16'!E9+'FEB16'!E9+'MAR16'!E9+'APR16'!E9+'MAY16'!E9+'JUN16'!E9+'JUL16'!E9+'AUG16'!E9+'SEP16'!E9+'OCT16'!E9+'NOV16'!E9+'DEC16'!E9 -> 0 | F9: ='JAN16'!F9+'FEB16'!F9+'MAR16'!F9+'APR16'!F9+'MAY16'!F9+'JUN16'!F9+'JUL16'!F9+'AUG16'!F9+'SEP16'!F9+'OCT16'!F9+'NOV16'!F9+'DEC16'!F9 -> 42 | G9: ='JAN16'!G9+'FEB16'!G9+'MAR16'!G9+'APR16'!G9+'MAY16'!G9+'JUN16'!G9+'JUL16'!G9+'AUG16'!G9+'SEP16'!G9+'OCT16'!G9+'NOV16'!G9+'DEC16'!G9 -> 31248 | H9: 31290 | I9: 0 | J9: 0.001048061087 | K9: 0.7797574487 | L9: 0.7808055098
A10: DR | B10: CIRCUIT CIVIL FAMILY | D10: ='JAN16'!D10+'FEB16'!D10+'MAR16'!D10+'APR16'!D10+'MAY16'!D10+'JUN16'!D10+'JUL16'!D10+'AUG16'!D10+'SEP16'!D10+'OCT16'!D10+'NOV16'!D10+'DEC16'!D10 -> 146535 | E10: ='JAN16'!E10+'FEB16'!E10+'MAR16'!E10+'APR16'!E10+'MAY16'!E10+'JUN16'!E10+'JUL16'!E10+'AUG16'!E10+'SEP16'!E10+'OCT16'!E10+'NOV16'!E10+'DEC16'!E10 -> 0 | F10: ='JAN16'!F10+'FEB16'!F10+'MAR16'!F10+'APR16'!F10+'MAY16'!F10+'JUN16'!F10+'JUL16'!F10+'AUG16'!F10+'SEP16'!F10+'OCT16'!F10+'NOV16'!F10+'DEC16'!F10 -> 133 | G10: ='JAN16'!G10+'FEB16'!G10+'MAR16'!G10+'APR16'!G10+'MAY16'!G10+'JUN16'!G10+'JUL16'!G10+'AUG16'!G10+'SEP16'!G10+'OCT16'!G10+'NOV16'!G10+'DEC16'!G10 -> 75977 | H10: 76110 | I10: 0 | J10: 0.0009076329887 | K10: 0.518490463 | L10: 0.519398096
A11: CP | B11: CIRCUIT CIVIL PROBATE | D11: ='JAN16'!D11+'FEB16'!D11+'MAR16'!D11+'APR16'!D11+'MAY16'!D11+'JUN16'!D11+'JUL16'!D11+'AUG16'!D11+'SEP16'!D11+'OCT16'!D11+'NOV16'!D11+'DEC16'!D11 -> 41956 | E11: ='JAN16'!E11+'FEB16'!E11+'MAR16'!E11+'APR16'!E11+'MAY16'!E11+'JUN16'!E11+'JUL16'!E11+'AUG16'!E11+'SEP16'!E11+'OCT16'!E11+'NOV16'!E11+'DEC16'!E11 -> 0 | F11: ='JAN16'!F11+'FEB16'!F11+'MAR16'!F11+'APR16'!F11+'MAY16'!F11+'JUN16'!F11+'JUL16'!F11+'AUG16'!F11+'SEP16'!F11+'OCT16'!F11+'NOV16'!F11+'DEC16'!F11 -> 95 | G11: ='JAN16'!G11+'FEB16'!G11+'MAR16'!G11+'APR16'!G11+'MAY16'!G11+'JUN16'!G11+'JUL16'!G11+'AUG16'!G11+'SEP16'!G11+'OCT16'!G11+'NOV16'!G11+'DEC16'!G11 -> 34438 | H11: 34533 | I11: 0 | J11: 0.002264276861 | K11: 0.8208122795 | L11: 0.8230765564
A12: GA | B12: CIRCUIT CIVIL GUARDIANSHIP | D12: ='JAN16'!D12+'FEB16'!D12+'MAR16'!D12+'APR16'!D12+'MAY16'!D12+'JUN16'!D12+'JUL16'!D12+'AUG16'!D12+'SEP16'!D12+'OCT16'!D12+'NOV16'!D12+'DEC16'!D12 -> 17703 | E12: ='JAN16'!E12+'FEB16'!E12+'MAR16'!E12+'APR16'!E12+'MAY16'!E12+'JUN16'!E12+'JUL16'!E12+'AUG16'!E12+'SEP16'!E12+'OCT16'!E12+'NOV16'!E12+'DEC16'!E12 -> 0 | F12: ='JAN16'!F12+'FEB16'!F12+'MAR16'!F12+'APR16'!F12+'MAY16'!F12+'JUN16'!F12+'JUL16'!F12+'AUG16'!F12+'SEP16'!F12+'OCT16'!F12+'NOV16'!F12+'DEC16'!F12 -> 30 | G12: ='JAN16'!G12+'FEB16'!G12+'MAR16'!G12+'APR16'!G12+'MAY16'!G12+'JUN16'!G12+'JUL16'!G12+'AUG16'!G12+'SEP16'!G12+'OCT16'!G12+'NOV16'!G12+'DEC16'!G12 -> 16760 | H12: 16790 | I12: 0 | J12: 0.001694628029 | K12: 0.9467321923 | L12: 0.9484268203
A13: MH | B13: CIRCUIT CIVIL MENTAL HEALTH | D13: ='JAN16'!D13+'FEB16'!D13+'MAR16'!D13+'APR16'!D13+'MAY16'!D13+'JUN16'!D13+'JUL16'!D13+'AUG16'!D13+'SEP16'!D13+'OCT16'!D13+'NOV16'!D13+'DEC16'!D13 -> 6572 | E13: ='JAN16'!E13+'FEB16'!E13+'MAR16'!E13+'APR16'!E13+'MAY16'!E13+'JUN16'!E13+'JUL16'!E13+'AUG16'!E13+'SEP16'!E13+'OCT16'!E13+'NOV16'!E13+'DEC16'!E13 -> 0 | F13: ='JAN16'!F13+'FEB16'!F13+'MAR16'!F13+'APR16'!F13+'MAY16'!F13+'JUN16'!F13+'JUL16'!F13+'AUG16'!F13+'SEP16'!F13+'OCT16'!F13+'NOV16'!F13+'DEC16'!F13 -> 16 | G13: ='JAN16'!G13+'FEB16'!G13+'MAR16'!G13+'APR16'!G13+'MAY16'!G13+'JUN16'!G13+'JUL16'!G13+'AUG16'!G13+'SEP16'!G13+'OCT16'!G13+'NOV16'!G13+'DEC16'!G13 -> 2645 | H13: 2661 | I13: 0 | J13: 0.002434570907 | K13: 0.402465003 | L13: 0.404899574
A14: CC | B14: COUNTY CIVIL | D14: ='JAN16'!D14+'FEB16'!D14+'MAR16'!D14+'APR16'!D14+'MAY16'!D14+'JUN16'!D14+'JUL16'!D14+'AUG16'!D14+'SEP16'!D14+'OCT16'!D14+'NOV16'!D14+'DEC16'!D14 -> 47972 | E14: ='JAN16'!E14+'FEB16'!E14+'MAR16'!E14+'APR16'!E14+'MAY16'!E14+'JUN16'!E14+'JUL16'!E14+'AUG16'!E14+'SEP16'!E14+'OCT16'!E14+'NOV16'!E14+'DEC16'!E14 -> 0 | F14: ='JAN16'!F14+'FEB16'!F14+'MAR16'!F14+'APR16'!F14+'MAY16'!F14+'JUN16'!F14+'JUL16'!F14+'AUG16'!F14+'SEP16'!F14+'OCT16'!F14+'NOV16'!F14+'DEC16'!F14 -> 79 | G14: ='JAN16'!G14+'FEB16'!G14+'MAR16'!G14+'APR16'!G14+'MAY16'!G14+'JUN16'!G14+'JUL16'!G14+'AUG16'!G14+'SEP16'!G14+'OCT16'!G14+'NOV16'!G14+'DEC16'!G14 -> 31787 | H14: 31866 | I14: 0 | J14: 0.001646793963 | K14: 0.6626156925 | L14: 0.6642624865
A15: DP | B15: CIRCUIT JUVENILE DEPENDENCY | D15: ='JAN16'!D15+'FEB16'!D15+'MAR16'!D15+'APR16'!D15+'MAY16'!D15+'JUN16'!D15+'JUL16'!D15+'AUG16'!D15+'SEP16'!D15+'OCT16'!D15+'NOV16'!D15+'DEC16'!D15 -> 26418 | E15: ='JAN16'!E15+'FEB16'!E15+'MAR16'!E15+'APR16'!E15+'MAY16'!E15+'JUN16'!E15+'JUL16'!E15+'AUG16'!E15+'SEP16'!E15+'OCT16'!E15+'NOV16'!E15+'DEC16'!E15 -> 0 | F15: ='JAN16'!F15+'FEB16'!F15+'MAR16'!F15+'APR16'!F15+'MAY16'!F15+'JUN16'!F15+'JUL16'!F15+'AUG16'!F15+'SEP16'!F15+'OCT16'!F15+'NOV16'!F15+'DEC16'!F15 -> 31 | G15: ='JAN16'!G15+'FEB16'!G15+'MAR16'!G15+'APR16'!G15+'MAY16'!G15+'JUN16'!G15+'JUL16'!G15+'AUG16'!G15+'SEP16'!G15+'OCT16'!G15+'NOV16'!G15+'DEC16'!G15 -> 16705 | H15: 16736 | I15: 0 | J15: 0.00117344235 | K15: 0.6323340147 | L15: 0.633507457
A16: TOTAL OF CIVIL DOCUMENTS | D16: =SUM(D7:D15) -> 510365 | E16: =SUM(E7:E15) -> 0 | F16: 0 | G16: =SUM(G7:G15) -> 355795 | H16: =SUM(H7:H15) -> 356222 | I16: =E16/D16 -> 0 | J16: =F16/D16 -> 0 | K16: 0.6971383226 | L16: 0.6971383226
A18: CJ | B18: CIRCUIT JUVENILE DELINQUENCY | D18: ='JAN16'!D18+'FEB16'!D18+'MAR16'!D18+'APR16'!D18+'MAY16'!D18+'JUN16'!D18+'JUL16'!D18+'AUG16'!D18+'SEP16'!D18+'OCT16'!D18+'NOV16'!D18+'DEC16'!D18 -> 64678 | E18: ='JAN16'!E18+'FEB16'!E18+'MAR16'!E18+'APR16'!E18+'MAY16'!E18+'JUN16'!E18+'JUL16'!E18+'AUG16'!E18+'SEP16'!E18+'OCT16'!E18+'NOV16'!E18+'DEC16'!E18 -> 44928 | F18: ='JAN16'!F18+'FEB16'!F18+'MAR16'!F18+'APR16'!F18+'MAY16'!F18+'JUN16'!F18+'JUL16'!F18+'AUG16'!F18+'SEP16'!F18+'OCT16'!F18+'NOV16'!F18+'DEC16'!F18 -> 106 | G18: ='JAN16'!G18+'FEB16'!G18+'MAR16'!G18+'APR16'!G18+'MAY16'!G18+'JUN16'!G18+'JUL16'!G18+'AUG16'!G18+'SEP16'!G18+'OCT16'!G18+'NOV16'!G18+'DEC16'!G18 -> 10711 | H18: =SUM(E18:G18) -> 55745 | I18: =E18/D18 -> 0.6946411454 | J18: =F18/D18 -> 0.00163888803 | K18: =G18/D18 -> 0.1656049971 | L18: =H18/D18 -> 0.8618850305
A19: CF | B19: CIRCUIT CRIMINAL FELONY | D19: ='JAN16'!D19+'FEB16'!D19+'MAR16'!D19+'APR16'!D19+'MAY16'!D19+'JUN16'!D19+'JUL16'!D19+'AUG16'!D19+'SEP16'!D19+'OCT16'!D19+'NOV16'!D19+'DEC16'!D19 -> 274388 | E19: ='JAN16'!E19+'FEB16'!E19+'MAR16'!E19+'APR16'!E19+'MAY16'!E19+'JUN16'!E19+'JUL16'!E19+'AUG16'!E19+'SEP16'!E19+'OCT16'!E19+'NOV16'!E19+'DEC16'!E19 -> 93749 | F19: ='JAN16'!F19+'FEB16'!F19+'MAR16'!F19+'APR16'!F19+'MAY16'!F19+'JUN16'!F19+'JUL16'!F19+'AUG16'!F19+'SEP16'!F19+'OCT16'!F19+'NOV16'!F19+'DEC16'!F19 -> 3841 | G19: ='JAN16'!G19+'FEB16'!G19+'MAR16'!G19+'APR16'!G19+'MAY16'!G19+'JUN16'!G19+'JUL16'!G19+'AUG16'!G19+'SEP16'!G19+'OCT16'!G19+'NOV16'!G19+'DEC16'!G19 -> 65485 | H19: =SUM(E19:G19) -> 163075 | I19: 0.3416658163 | J19: =F19/D19 -> 0.01399842559 | K19: =G19/D19 -> 0.2386583961 | L19: =H19/D19 -> 0.594322638
A20: MM | B20: COUNTY CRIMINAL MISDEMEANOR | D20: ='JAN16'!D20+'FEB16'!D20+'MAR16'!D20+'APR16'!D20+'MAY16'!D20+'JUN16'!D20+'JUL16'!D20+'AUG16'!D20+'SEP16'!D20+'OCT16'!D20+'NOV16'!D20+'DEC16'!D20 -> 137725 | E20: ='JAN16'!E20+'FEB16'!E20+'MAR16'!E20+'APR16'!E20+'MAY16'!E20+'JUN16'!E20+'JUL16'!E20+'AUG16'!E20+'SEP16'!E20+'OCT16'!E20+'NOV16'!E20+'DEC16'!E20 -> 69516 | F20: ='JAN16'!F20+'FEB16'!F20+'MAR16'!F20+'APR16'!F20+'MAY16'!F20+'JUN16'!F20+'JUL16'!F20+'AUG16'!F20+'SEP16'!F20+'OCT16'!F20+'NOV16'!F20+'DEC16'!F20 -> 1721 | G20: ='JAN16'!G20+'FEB16'!G20+'MAR16'!G20+'APR16'!G20+'MAY16'!G20+'JUN16'!G20+'JUL16'!G20+'AUG16'!G20+'SEP16'!G20+'OCT16'!G20+'NOV16'!G20+'DEC16'!G20 -> 22267 | H20: 93504 | I20: 0.5047449628 | J20: 0.01249591577 | K20: 0.1616772554 | L20: 0.678918134
A21: CO | B21: COUNTY ORDINANCE | D21: ='JAN16'!D21+'FEB16'!D21+'MAR16'!D21+'APR16'!D21+'MAY16'!D21+'JUN16'!D21+'JUL16'!D21+'AUG16'!D21+'SEP16'!D21+'OCT16'!D21+'NOV16'!D21+'DEC16'!D21 -> 825 | E21: ='JAN16'!E21+'FEB16'!E21+'MAR16'!E21+'APR16'!E21+'MAY16'!E21+'JUN16'!E21+'JUL16'!E21+'AUG16'!E21+'SEP16'!E21+'OCT16'!E21+'NOV16'!E21+'DEC16'!E21 -> 380 | F21: ='JAN16'!F21+'FEB16'!F21+'MAR16'!F21+'APR16'!F21+'MAY16'!F21+'JUN16'!F21+'JUL16'!F21+'AUG16'!F21+'SEP16'!F21+'OCT16'!F21+'NOV16'!F21+'DEC16'!F21 -> 20 | G21: ='JAN16'!G21+'FEB16'!G21+'MAR16'!G21+'APR16'!G21+'MAY16'!G21+'JUN16'!G21+'JUL16'!G21+'AUG16'!G21+'SEP16'!G21+'OCT16'!G21+'NOV16'!G21+'DEC16'!G21 -> 121 | H21: 521 | I21: 0.4606060606 | J21: 0.02424242424 | K21: 0.1466666667 | L21: 0.6315151515
A22: MO | B22: COUNTY COURT MUNICIPAL ORDINANCE | D22: ='JAN16'!D22+'FEB16'!D22+'MAR16'!D22+'APR16'!D22+'MAY16'!D22+'JUN16'!D22+'JUL16'!D22+'AUG16'!D22+'SEP16'!D22+'OCT16'!D22+'NOV16'!D22+'DEC16'!D22 -> 2693 | E22: ='JAN16'!E22+'FEB16'!E22+'MAR16'!E22+'APR16'!E22+'MAY16'!E22+'JUN16'!E22+'JUL16'!E22+'AUG16'!E22+'SEP16'!E22+'OCT16'!E22+'NOV16'!E22+'DEC16'!E22 -> 1399 | F22: ='JAN16'!F22+'FEB16'!F22+'MAR16'!F22+'APR16'!F22+'MAY16'!F22+'JUN16'!F22+'JUL16'!F22+'AUG16'!F22+'SEP16'!F22+'OCT16'!F22+'NOV16'!F22+'DEC16'!F22 -> 150 | G22: ='JAN16'!G22+'FEB16'!G22+'MAR16'!G22+'APR16'!G22+'MAY16'!G22+'JUN16'!G22+'JUL16'!G22+'AUG16'!G22+'SEP16'!G22+'OCT16'!G22+'NOV16'!G22+'DEC16'!G22 -> 359 | H22: 1908 | I22: 0.519494987 | J22: 0.05569996287 | K22: 0.1333085778 | L22: 0.7085035277
A23: IN | B23: COUNTY COURT INFRACTIONS | D23: ='JAN16'!D23+'FEB16'!D23+'MAR16'!D23+'APR16'!D23+'MAY16'!D23+'JUN16'!D23+'JUL16'!D23+'AUG16'!D23+'SEP16'!D23+'OCT16'!D23+'NOV16'!D23+'DEC16'!D23 -> 3420 | E23: ='JAN16'!E23+'FEB16'!E23+'MAR16'!E23+'APR16'!E23+'MAY16'!E23+'JUN16'!E23+'JUL16'!E23+'AUG16'!E23+'SEP16'!E23+'OCT16'!E23+'NOV16'!E23+'DEC16'!E23 -> 152 | F23: ='JAN16'!F23+'FEB16'!F23+'MAR16'!F23+'APR16'!F23+'MAY16'!F23+'JUN16'!F23+'JUL16'!F23+'AUG16'!F23+'SEP16'!F23+'OCT16'!F23+'NOV16'!F23+'DEC16'!F23 -> 271 | G23: ='JAN16'!G23+'FEB16'!G23+'MAR16'!G23+'APR16'!G23+'MAY16'!G23+'JUN16'!G23+'JUL16'!G23+'AUG16'!G23+'SEP16'!G23+'OCT16'!G23+'NOV16'!G23+'DEC16'!G23 -> 47 | H23: 470 | I23: 0.04444444444 | J23: 0.07923976608 | K23: 0.01374269006 | L23: 0.1374269006
A24: CT | B24: COUNTY CRIMINAL TRAFFIC | D24: ='JAN16'!D24+'FEB16'!D24+'MAR16'!D24+'APR16'!D24+'MAY16'!D24+'JUN16'!D24+'JUL16'!D24+'AUG16'!D24+'SEP16'!D24+'OCT16'!D24+'NOV16'!D24+'DEC16'!D24 -> 110896 | E24: ='JAN16'!E24+'FEB16'!E24+'MAR16'!E24+'APR16'!E24+'MAY16'!E24+'JUN16'!E24+'JUL16'!E24+'AUG16'!E24+'SEP16'!E24+'OCT16'!E24+'NOV16'!E24+'DEC16'!E24 -> 58981 | F24: ='JAN16'!F24+'FEB16'!F24+'MAR16'!F24+'APR16'!F24+'MAY16'!F24+'JUN16'!F24+'JUL16'!F24+'AUG16'!F24+'SEP16'!F24+'OCT16'!F24+'NOV16'!F24+'DEC16'!F24 -> 3139 | G24: ='JAN16'!G24+'FEB16'!G24+'MAR16'!G24+'APR16'!G24+'MAY16'!G24+'JUN16'!G24+'JUL16'!G24+'AUG16'!G24+'SEP16'!G24+'OCT16'!G24+'NOV16'!G24+'DEC16'!G24 -> 14194 | H24: 76314 | I24: 0.5318586784 | J24: 0.02830580003 | K24: 0.127993796 | L24: 0.6881582744
A25: TOTAL OF CRIMINAL DOCUMENTS | D25: =SUM(D18:D24) -> 594625 | E25: =SUM(E18:E24) -> 269105 | F25: ='JAN16'!F25+'FEB16'!F25+'MAR16'!F25+'APR16'!F25+'MAY16'!F25+'JUN16'!F25+'JUL16'!F25+'AUG16'!F25+'SEP16'!F25+'OCT16'!F25+'NOV16'!F25+'DEC16'!F25 -> 9248 | G25: =SUM(G18:G24) -> 113184 | H25: =SUM(E25:G25) -> 391537 | I25: 0.4525625394 | J25: 0.01555265924 | K25: 0.1903451755 | L25: 0.6584603742
A27: TR | B27: COUNTY CIVIL TRAFFIC | D27: ='JAN16'!D27+'FEB16'!D27+'MAR16'!D27+'APR16'!D27+'MAY16'!D27+'JUN16'!D27+'JUL16'!D27+'AUG16'!D27+'SEP16'!D27+'OCT16'!D27+'NOV16'!D27+'DEC16'!D27 -> 71785 | E27: ='JAN16'!E27+'FEB16'!E27+'MAR16'!E27+'APR16'!E27+'MAY16'!E27+'JUN16'!E27+'JUL16'!E27+'AUG16'!E27+'SEP16'!E27+'OCT16'!E27+'NOV16'!E27+'DEC16'!E27 -> 7938 | F27: ='JAN16'!F27+'FEB16'!F27+'MAR16'!F27+'APR16'!F27+'MAY16'!F27+'JUN16'!F27+'JUL16'!F27+'AUG16'!F27+'SEP16'!F27+'OCT16'!F27+'NOV16'!F27+'DEC16'!F27 -> 903 | G27: ='JAN16'!G27+'FEB16'!G27+'MAR16'!G27+'APR16'!G27+'MAY16'!G27+'JUN16'!G27+'JUL16'!G27+'AUG16'!G27+'SEP16'!G27+'OCT16'!G27+'NOV16'!G27+'DEC16'!G27 -> 2419 | H27: =SUM(E27:G27) -> 11260 | I27: =E27/D27 -> 0.1105802048 | J27: =F27/D27 -> 0.01257922964 | K27: =G27/D27 -> 0.03369784774 | L27: =H27/D27 -> 0.1568572822
A29: TOTAL ALL COURT DOCUMENTS | D29: =D16+D25+D27 -> 1176775 | E29: =E16+E25+E27 -> 277043 | F29: =F16+F25+F27 -> 10151 | G29: =G16+G25+G27 -> 471398 | H29: =SUM(E29:G29) -> 758592 | I29: =E29/D29 -> 0.2354256336 | J29: =F29/D29 -> 0.008626117992 | K29: =G29/D29 -> 0.4005846487 | L29: =H29/D29 -> 0.6446364003
C30: Aug
